{"text_format":"1","workbook":"xlsx","n_sheets":11,"sheets":["Instructions","Overview","Weekday","Saturday","Sunday","Weekly Totals","Dashboard","Finance","Reconciliation","Definitions","Warning"],"not_rendered":{"charts":24,"images":8,"macros":1,"external_links":0,"defined_names":12,"comments":0,"pivot_tables":0},"unopened":[],"bounds":{"document_bytes":16777216,"sheet_cells":100000,"rows_first":2000,"rows_last":500,"rows_between":2000,"halvings":0,"cell_chars":16384,"cell_head_chars":4096},"cells_cut":0,"cells_raw":0,"read":"whole","date_system":"1900"}

{"sheet":"Instructions","index":0,"n_rows":1,"n_cols":1,"rows_kept":1,"cut":false,"hidden":true,"merged":[]}
["Operating and Financial Statistics Report - General Instructions"]

{"sheet":"Overview","index":1,"n_rows":30,"n_cols":10,"rows_kept":30,"cut":false,"hidden":true,"merged":[[27,1,27,3],[28,3,28,5],[9,1,9,2],[9,3,9,5],[21,1,21,2],[21,4,21,5],[12,1,12,2],[12,4,12,5],[14,1,14,3],[15,1,15,3],[16,1,16,3],[18,1,18,3],[17,1,17,3],[19,1,19,3],[2,1,2,3],[3,1,3,2],[3,3,3,5],[5,1,5,2],[7,1,7,2],[7,3,7,5],[6,1,6,2],[6,3,6,5]]}
[null,{"$f":"\"1. OVERVIEW: \"&Overview!D4","v":"1. OVERVIEW: "},null,null,null,"URBAN OpStats"]
[null,"FY2024",null,"A","B","C",null,null,null,"APEX (255)"]
[null,"System Information",null,null,null,null,null,null,null,"ASHEVILLE (201)"]
[1,"CTP Grantee's Legal Name",null,null,null,null,1,null,null,"BURLINGTON (249)"]
[null,null,null,"First Name","Middle Initial","Last Name",null,null,null,"CARTS (251)"]
[{"$f":"A4+1","v":2},"Transit's Contact Person",null,null,null,null,2,null,null,"CARY (203)"]
["2a","Contact Email",null,null,null,null,"2a",null,null,"CHAPEL HILL (205)"]
[3,"Transit's Telephone Number",null,null,null,null,3,null,null,"CHARLOTTE (207)"]
[null,null,null,null,null,null,null,null,null,"CONCORD/KANNAPOLIS (209)"]
[{"$f":"A8+1","v":4},"Transit's Fax Number",null,null,null,null,4,null,null,"DURHAM (211)"]
[null,null,null,null,null,null,null,null,null,"FAYETTEVILLE (213)"]
[{"$f":"A10+1","v":5},null,"Date",null,null,null,5,null,null,"GASTONIA (215)"]
[null,"Operating Modes",null,null,null,null,null,null,null,"GOLDSBORO (217)"]
[null,null,null,null,"Operating Modes",null,null,null,null,"GREENSBORO (219)"]
[{"$f":"A12+1","v":6},"Fixed Route",null,null,0,null,{"$f":"G12+1","v":6},null,null,"GREENVILLE (221)"]
[{"$f":"A15+1","v":7},"Dial-A-Ride",null,null,0,null,{"$f":"G15+1","v":7},null,null,"HENDERSON COUNTY (223)"]
[{"$f":"A16+1","v":8},"Light Rail",null,null,0,null,{"$f":"G16+1","v":8},null,null,"HIGH POINT (225)"]
[{"$f":"A17+1","v":9},"Street Car",null,null,0,null,{"$f":"G17+1","v":9},null,null,"JACKSONVILLE (227)"]
[{"$f":"A18+1","v":10},"Vanpool",null,null,0,null,10,null,null,"MORRISVILLE (253)"]
[11,"Microtransit",null,null,0,null,11,null,null,"PIEDMONT AUTHORITY (229)"]
[null,null,null,null,null,null,null,null,null,"RALEIGH - CAT (231)"]
[null,"Operating Hours",null,null,null,null,null,null,null,"RALEIGH - NCSU (233)"]
[null,null,null,"Begin Time","End Time","# of Peak Period Routes",null,null,null,"ROCKY MOUNT (235)"]
[{"$f":"A20+1","v":12},null,"Weekday",null,null,null,{"$f":"G20+1","v":12},null,null,"SALISBURY (237)"]
[{"$f":"A24+1","v":13},null,"Saturday (if applicable)",null,null,null,{"$f":"G24+1","v":13},null,null,"TRIANGLE TRANSIT (239)"]
[{"$f":"A25+1","v":14},null,"Sunday (if applicable)",null,null,null,{"$f":"G25+1","v":14},null,null,"WILMINGTON (241)"]
[null,null,null,null,null,null,null,null,null,"WINSTON-SALEM (245)"]
[null,"Management/Operations Contractor",null,null,null,null,null,null,null,"WPRTA (247)"]
[{"$f":"A26+1","v":15},null,"Contractor Name",null,null,null,{"$f":"G26+1","v":15}]
[null,null,null,"A","B","C"]

{"sheet":"Weekday","index":2,"n_rows":41,"n_cols":21,"rows_kept":41,"cut":false,"hidden":true,"merged":[[2,1,2,2]]}
[null,{"$f":"\"2. WEEKDAY: \"&Overview!D4","v":"2. WEEKDAY: "}]
[null,null,null,"A","B","C","D","E","F","G","H","I","J","K","L"]
[null,{"$f":"Overview!B2","v":"FY2024"},null,"July","August","September","October","November","December","January","February","March","April","May","June","Quarter 1","Quarter 2","Quarter 3","Quarter 4","YTD Totals"]
[{"$f":"Overview!A29+1","v":16},null,"Operating Days",null,null,null,null,null,null,null,null,null,null,null,null,{"$f":"D4+E4+F4","v":0},{"$f":"G4+H4+I4","v":0},{"$f":"J4+K4+L4","v":0},{"$f":"M4+N4+O4","v":0},{"$f":"SUM(D4:O4)","v":0},{"$f":"Overview!G29+1","v":16}]
[null,"Fixed Route"]
[{"$f":"A4+1","v":17},null,"AM/PM Peak Period Vehicles",null,null,null,null,null,null,null,null,null,null,null,null,{"$f":"MAX(D6:F6)","v":0},{"$f":"MAX(G6:I6)","v":0},{"$f":"MAX(J6:L6)","v":0},{"$f":"MAX(M6:O6)","v":0},{"$f":"MAX(P6:S6)","v":0},{"$f":"U4+1","v":17}]
[{"$f":"A6+1","v":18},null,"Midday Vehicles",null,null,null,null,null,null,null,null,null,null,null,null,{"$f":"MAX(D7:F7)","v":0},{"$f":"MAX(G7:I7)","v":0},{"$f":"MAX(J7:L7)","v":0},{"$f":"MAX(M7:O7)","v":0},{"$f":"MAX(P7:S7)","v":0},{"$f":"U6+1","v":18}]
[{"$f":"A7+1","v":19},null,"Total Unlinked Passenger Trips",null,null,null,null,null,null,null,null,null,null,null,null,{"$f":"D8+E8+F8","v":0},{"$f":"G8+H8+I8","v":0},{"$f":"J8+K8+L8","v":0},{"$f":"M8+N8+O8","v":0},{"$f":"SUM(D8:O8)","v":0},{"$f":"U7+1","v":19}]
[{"$f":"A8+1","v":20},null,"Vehicle Revenue Miles",null,null,null,null,null,null,null,null,null,null,null,null,{"$f":"D9+E9+F9","v":0},{"$f":"G9+H9+I9","v":0},{"$f":"J9+K9+L9","v":0},{"$f":"M9+N9+O9","v":0},{"$f":"SUM(D9:O9)","v":0},{"$f":"U8+1","v":20}]
[{"$f":"A9+1","v":21},null,"Vehicle Revenue Hours",null,null,null,null,null,null,null,null,null,null,null,null,{"$f":"D10+E10+F10","v":0},{"$f":"G10+H10+I10","v":0},{"$f":"J10+K10+L10","v":0},{"$f":"M10+N10+O10","v":0},{"$f":"SUM(D10:O10)","v":0},{"$f":"U9+1","v":21}]
[null,"Dial-A-Ride"]
[{"$f":"A10+1","v":22},null,"AM/PM Peak Period Vehicles",null,null,null,null,null,null,null,null,null,null,null,null,{"$f":"MAX(D12:F12)","v":0},{"$f":"MAX(G12:I12)","v":0},{"$f":"MAX(J12:L12)","v":0},{"$f":"MAX(M12:O12)","v":0},{"$f":"MAX(P12:S12)","v":0},{"$f":"U10+1","v":22}]
[{"$f":"A12+1","v":23},null,"Midday Vehicles",null,null,null,null,null,null,null,null,null,null,null,null,{"$f":"MAX(D13:F13)","v":0},{"$f":"MAX(G13:I13)","v":0},{"$f":"MAX(J13:L13)","v":0},{"$f":"MAX(M13:O13)","v":0},{"$f":"MAX(P13:S13)","v":0},{"$f":"U12+1","v":23}]
[{"$f":"A13+1","v":24},null,"Total Unlinked Passenger Trips",null,null,null,null,null,null,null,null,null,null,null,null,{"$f":"D14+E14+F14","v":0},{"$f":"G14+H14+I14","v":0},{"$f":"J14+K14+L14","v":0},{"$f":"M14+N14+O14","v":0},{"$f":"SUM(D14:O14)","v":0},{"$f":"U13+1","v":24}]
[{"$f":"A14+1","v":25},null,"Vehicle Revenue Miles",null,null,null,null,null,null,null,null,null,null,null,null,{"$f":"D15+E15+F15","v":0},{"$f":"G15+H15+I15","v":0},{"$f":"J15+K15+L15","v":0},{"$f":"M15+N15+O15","v":0},{"$f":"SUM(D15:O15)","v":0},{"$f":"U14+1","v":25}]
[{"$f":"A15+1","v":26},null,"Vehicle Revenue Hours",null,null,null,null,null,null,null,null,null,null,null,null,{"$f":"D16+E16+F16","v":0},{"$f":"G16+H16+I16","v":0},{"$f":"J16+K16+L16","v":0},{"$f":"M16+N16+O16","v":0},{"$f":"SUM(D16:O16)","v":0},{"$f":"U15+1","v":26}]
[null,"Light Rail"]
[{"$f":"A16+1","v":27},null,"AM/PM Peak Period Trains",null,null,null,null,null,null,null,null,null,null,null,null,{"$f":"MAX(D18:F18)","v":0},{"$f":"MAX(G18:I18)","v":0},{"$f":"MAX(J18:L18)","v":0},{"$f":"MAX(M18:O18)","v":0},{"$f":"MAX(P18:S18)","v":0},{"$f":"U16+1","v":27}]
[{"$f":"A18+1","v":28},null,"Midday Trains",null,null,null,null,null,null,null,null,null,null,null,null,{"$f":"MAX(D19:F19)","v":0},{"$f":"MAX(G19:I19)","v":0},{"$f":"MAX(J19:L19)","v":0},{"$f":"MAX(M19:O19)","v":0},{"$f":"MAX(P19:S19)","v":0},{"$f":"U18+1","v":28}]
[{"$f":"A19+1","v":29},null,"Total Unlinked Passenger Trips",null,null,null,null,null,null,null,null,null,null,null,null,{"$f":"D20+E20+F20","v":0},{"$f":"G20+H20+I20","v":0},{"$f":"J20+K20+L20","v":0},{"$f":"M20+N20+O20","v":0},{"$f":"SUM(D20:O20)","v":0},{"$f":"U19+1","v":29}]
[{"$f":"A20+1","v":30},null,"Train Revenue Miles",null,null,null,null,null,null,null,null,null,null,null,null,{"$f":"D21+E21+F21","v":0},{"$f":"G21+H21+I21","v":0},{"$f":"J21+K21+L21","v":0},{"$f":"M21+N21+O21","v":0},{"$f":"SUM(D21:O21)","v":0},{"$f":"U20+1","v":30}]
[{"$f":"A21+1","v":31},null,"Train Revenue Hours",null,null,null,null,null,null,null,null,null,null,null,null,{"$f":"D22+E22+F22","v":0},{"$f":"G22+H22+I22","v":0},{"$f":"J22+K22+L22","v":0},{"$f":"M22+N22+O22","v":0},{"$f":"SUM(D22:O22)","v":0},{"$f":"U21+1","v":31}]
[null,"Street Car"]
[{"$f":"A22+1","v":32},null,"AM/PM Peak Period Vehicles",null,null,null,null,null,null,null,null,null,null,null,null,{"$f":"MAX(D24:F24)","v":0},{"$f":"MAX(G24:I24)","v":0},{"$f":"MAX(J24:L24)","v":0},{"$f":"MAX(M24:O24)","v":0},{"$f":"MAX(P24:S24)","v":0},{"$f":"U22+1","v":32}]
[{"$f":"A24+1","v":33},null,"Midday Vehicles",null,null,null,null,null,null,null,null,null,null,null,null,{"$f":"MAX(D25:F25)","v":0},{"$f":"MAX(G25:I25)","v":0},{"$f":"MAX(J25:L25)","v":0},{"$f":"MAX(M25:O25)","v":0},{"$f":"MAX(P25:S25)","v":0},{"$f":"U24+1","v":33}]
[{"$f":"A25+1","v":34},null,"Total Unlinked Passenger Trips",null,null,null,null,null,null,null,null,null,null,null,null,{"$f":"D26+E26+F26","v":0},{"$f":"G26+H26+I26","v":0},{"$f":"J26+K26+L26","v":0},{"$f":"M26+N26+O26","v":0},{"$f":"SUM(D26:O26)","v":0},{"$f":"U25+1","v":34}]
[{"$f":"A26+1","v":35},null,"Vehicle Revenue Miles",null,null,null,null,null,null,null,null,null,null,null,null,{"$f":"D27+E27+F27","v":0},{"$f":"G27+H27+I27","v":0},{"$f":"J27+K27+L27","v":0},{"$f":"M27+N27+O27","v":0},{"$f":"SUM(D27:O27)","v":0},{"$f":"U26+1","v":35}]
[{"$f":"A27+1","v":36},null,"Vehicle Revenue Hours",null,null,null,null,null,null,null,null,null,null,null,null,{"$f":"D28+E28+F28","v":0},{"$f":"G28+H28+I28","v":0},{"$f":"J28+K28+L28","v":0},{"$f":"M28+N28+O28","v":0},{"$f":"SUM(D28:O28)","v":0},{"$f":"U27+1","v":36}]
[null,"Vanpool"]
[{"$f":"A28+1","v":37},null,"AM/PM Peak Period Vehicles",null,null,null,null,null,null,null,null,null,null,null,null,{"$f":"MAX(D30:F30)","v":0},{"$f":"MAX(G30:I30)","v":0},{"$f":"MAX(J30:L30)","v":0},{"$f":"MAX(M30:O30)","v":0},{"$f":"MAX(P30:S30)","v":0},{"$f":"U28+1","v":37}]
[{"$f":"A30+1","v":38},null,"Midday Vehicles",null,null,null,null,null,null,null,null,null,null,null,null,{"$f":"MAX(D31:F31)","v":0},{"$f":"MAX(G31:I31)","v":0},{"$f":"MAX(J31:L31)","v":0},{"$f":"MAX(M31:O31)","v":0},{"$f":"MAX(P31:S31)","v":0},{"$f":"U30+1","v":38}]
[{"$f":"A31+1","v":39},null,"Total Unlinked Passenger Trips",null,null,null,null,null,null,null,null,null,null,null,null,{"$f":"D32+E32+F32","v":0},{"$f":"G32+H32+I32","v":0},{"$f":"J32+K32+L32","v":0},{"$f":"M32+N32+O32","v":0},{"$f":"SUM(D32:O32)","v":0},{"$f":"U31+1","v":39}]
[{"$f":"A32+1","v":40},null,"Vehicle Revenue Miles",null,null,null,null,null,null,null,null,null,null,null,null,{"$f":"D33+E33+F33","v":0},{"$f":"G33+H33+I33","v":0},{"$f":"J33+K33+L33","v":0},{"$f":"M33+N33+O33","v":0},{"$f":"SUM(D33:O33)","v":0},{"$f":"U32+1","v":40}]
[{"$f":"A33+1","v":41},null,"Vehicle Revenue Hours",null,null,null,null,null,null,null,null,null,null,null,null,{"$f":"D34+E34+F34","v":0},{"$f":"G34+H34+I34","v":0},{"$f":"J34+K34+L34","v":0},{"$f":"M34+N34+O34","v":0},{"$f":"SUM(D34:O34)","v":0},{"$f":"U33+1","v":41}]
[null,"Microtransit"]
[{"$f":"A34+1","v":42},null,"AM/PM Peak Period Vehicles",null,null,null,null,null,null,null,null,null,null,null,null,{"$f":"MAX(D36:F36)","v":0},{"$f":"MAX(G36:I36)","v":0},{"$f":"MAX(J36:L36)","v":0},{"$f":"MAX(M36:O36)","v":0},{"$f":"MAX(P36:S36)","v":0},{"$f":"U34+1","v":42}]
[{"$f":"A36+1","v":43},null,"Midday Vehicles",null,null,null,null,null,null,null,null,null,null,null,null,{"$f":"MAX(D37:F37)","v":0},{"$f":"MAX(G37:I37)","v":0},{"$f":"MAX(J37:L37)","v":0},{"$f":"MAX(M37:O37)","v":0},{"$f":"MAX(P37:S37)","v":0},{"$f":"U36+1","v":43}]
[{"$f":"A37+1","v":44},null,"Total Unlinked Passenger Trips",null,null,null,null,null,null,null,null,null,null,null,null,{"$f":"D38+E38+F38","v":0},{"$f":"G38+H38+I38","v":0},{"$f":"J38+K38+L38","v":0},{"$f":"M38+N38+O38","v":0},{"$f":"SUM(D38:O38)","v":0},{"$f":"U37+1","v":44}]
[{"$f":"A38+1","v":45},null,"Vehicle Revenue Miles",null,null,null,null,null,null,null,null,null,null,null,null,{"$f":"D39+E39+F39","v":0},{"$f":"G39+H39+I39","v":0},{"$f":"J39+K39+L39","v":0},{"$f":"M39+N39+O39","v":0},{"$f":"SUM(D39:O39)","v":0},{"$f":"U38+1","v":45}]
[{"$f":"A39+1","v":46},null,"Vehicle Revenue Hours",null,null,null,null,null,null,null,null,null,null,null,null,{"$f":"D40+E40+F40","v":0},{"$f":"G40+H40+I40","v":0},{"$f":"J40+K40+L40","v":0},{"$f":"M40+N40+O40","v":0},{"$f":"SUM(D40:O40)","v":0},{"$f":"U39+1","v":46}]
[null,null,null,"A","B","C","D","E","F","G","H","I","J","K","L"]

{"sheet":"Saturday","index":3,"n_rows":41,"n_cols":21,"rows_kept":41,"cut":false,"hidden":true,"merged":[[2,1,2,2]]}
[null,{"$f":"\"3. SATURDAY: \"&Overview!D4","v":"3. SATURDAY: "}]
[null,null,null,"A","B","C","D","E","F","G","H","I","J","K","L"]
[null,{"$f":"Overview!B2","v":"FY2024"},null,"July","August","September","October","November","December","January","February","March","April","May","June","Quarter 1","Quarter 2","Quarter 3","Quarter 4","YTD Totals"]
[{"$f":"Weekday!A40+1","v":47},null,"Operating Days",null,null,null,null,null,null,null,null,null,null,null,null,{"$f":"D4+E4+F4","v":0},{"$f":"G4+H4+I4","v":0},{"$f":"J4+K4+L4","v":0},{"$f":"M4+N4+O4","v":0},{"$f":"SUM(D4:O4)","v":0},{"$f":"Weekday!U40+1","v":47}]
[null,"Fixed Route"]
[{"$f":"A4+1","v":48},null,"AM/PM Peak Period Vehicles",null,null,null,null,null,null,null,null,null,null,null,null,{"$f":"MAX(D6:F6)","v":0},{"$f":"MAX(G6:I6)","v":0},{"$f":"MAX(J6:L6)","v":0},{"$f":"MAX(M6:O6)","v":0},{"$f":"MAX(P6:S6)","v":0},{"$f":"U4+1","v":48}]
[{"$f":"A6+1","v":49},null,"Midday Vehicles",null,null,null,null,null,null,null,null,null,null,null,null,{"$f":"MAX(D7:F7)","v":0},{"$f":"MAX(G7:I7)","v":0},{"$f":"MAX(J7:L7)","v":0},{"$f":"MAX(M7:O7)","v":0},{"$f":"MAX(P7:S7)","v":0},{"$f":"U6+1","v":49}]
[{"$f":"A7+1","v":50},null,"Total Unlinked Passenger Trips",null,null,null,null,null,null,null,null,null,null,null,null,{"$f":"D8+E8+F8","v":0},{"$f":"G8+H8+I8","v":0},{"$f":"J8+K8+L8","v":0},{"$f":"M8+N8+O8","v":0},{"$f":"SUM(D8:O8)","v":0},{"$f":"U7+1","v":50}]
[{"$f":"A8+1","v":51},null,"Vehicle Revenue Miles",null,null,null,null,null,null,null,null,null,null,null,null,{"$f":"D9+E9+F9","v":0},{"$f":"G9+H9+I9","v":0},{"$f":"J9+K9+L9","v":0},{"$f":"M9+N9+O9","v":0},{"$f":"SUM(D9:O9)","v":0},{"$f":"U8+1","v":51}]
[{"$f":"A9+1","v":52},null,"Vehicle Revenue Hours",null,null,null,null,null,null,null,null,null,null,null,null,{"$f":"D10+E10+F10","v":0},{"$f":"G10+H10+I10","v":0},{"$f":"J10+K10+L10","v":0},{"$f":"M10+N10+O10","v":0},{"$f":"SUM(D10:O10)","v":0},{"$f":"U9+1","v":52}]
[null,"Dial-A-Ride"]
[{"$f":"A10+1","v":53},null,"AM/PM Peak Period Vehicles",null,null,null,null,null,null,null,null,null,null,null,null,{"$f":"MAX(D12:F12)","v":0},{"$f":"MAX(G12:I12)","v":0},{"$f":"MAX(J12:L12)","v":0},{"$f":"MAX(M12:O12)","v":0},{"$f":"MAX(P12:S12)","v":0},{"$f":"U10+1","v":53}]
[{"$f":"A12+1","v":54},null,"Midday Vehicles",null,null,null,null,null,null,null,null,null,null,null,null,{"$f":"MAX(D13:F13)","v":0},{"$f":"MAX(G13:I13)","v":0},{"$f":"MAX(J13:L13)","v":0},{"$f":"MAX(M13:O13)","v":0},{"$f":"MAX(P13:S13)","v":0},{"$f":"U12+1","v":54}]
[{"$f":"A13+1","v":55},null,"Total Unlinked Passenger Trips",null,null,null,null,null,null,null,null,null,null,null,null,{"$f":"D14+E14+F14","v":0},{"$f":"G14+H14+I14","v":0},{"$f":"J14+K14+L14","v":0},{"$f":"M14+N14+O14","v":0},{"$f":"SUM(D14:O14)","v":0},{"$f":"U13+1","v":55}]
[{"$f":"A14+1","v":56},null,"Vehicle Revenue Miles",null,null,null,null,null,null,null,null,null,null,null,null,{"$f":"D15+E15+F15","v":0},{"$f":"G15+H15+I15","v":0},{"$f":"J15+K15+L15","v":0},{"$f":"M15+N15+O15","v":0},{"$f":"SUM(D15:O15)","v":0},{"$f":"U14+1","v":56}]
[{"$f":"A15+1","v":57},null,"Vehicle Revenue Hours",null,null,null,null,null,null,null,null,null,null,null,null,{"$f":"D16+E16+F16","v":0},{"$f":"G16+H16+I16","v":0},{"$f":"J16+K16+L16","v":0},{"$f":"M16+N16+O16","v":0},{"$f":"SUM(D16:O16)","v":0},{"$f":"U15+1","v":57}]
[null,"Light Rail"]
[{"$f":"A16+1","v":58},null,"AM/PM Peak Period Trains",null,null,null,null,null,null,null,null,null,null,null,null,{"$f":"MAX(D18:F18)","v":0},{"$f":"MAX(G18:I18)","v":0},{"$f":"MAX(J18:L18)","v":0},{"$f":"MAX(M18:O18)","v":0},{"$f":"MAX(P18:S18)","v":0},{"$f":"U16+1","v":58}]
[{"$f":"A18+1","v":59},null,"Midday Trains",null,null,null,null,null,null,null,null,null,null,null,null,{"$f":"MAX(D19:F19)","v":0},{"$f":"MAX(G19:I19)","v":0},{"$f":"MAX(J19:L19)","v":0},{"$f":"MAX(M19:O19)","v":0},{"$f":"MAX(P19:S19)","v":0},{"$f":"U18+1","v":59}]
[{"$f":"A19+1","v":60},null,"Total Unlinked Passenger Trips",null,null,null,null,null,null,null,null,null,null,null,null,{"$f":"D20+E20+F20","v":0},{"$f":"G20+H20+I20","v":0},{"$f":"J20+K20+L20","v":0},{"$f":"M20+N20+O20","v":0},{"$f":"SUM(D20:O20)","v":0},{"$f":"U19+1","v":60}]
[{"$f":"A20+1","v":61},null,"Train Revenue Miles",null,null,null,null,null,null,null,null,null,null,null,null,{"$f":"D21+E21+F21","v":0},{"$f":"G21+H21+I21","v":0},{"$f":"J21+K21+L21","v":0},{"$f":"M21+N21+O21","v":0},{"$f":"SUM(D21:O21)","v":0},{"$f":"U20+1","v":61}]
[{"$f":"A21+1","v":62},null,"Train Revenue Hours",null,null,null,null,null,null,null,null,null,null,null,null,{"$f":"D22+E22+F22","v":0},{"$f":"G22+H22+I22","v":0},{"$f":"J22+K22+L22","v":0},{"$f":"M22+N22+O22","v":0},{"$f":"SUM(D22:O22)","v":0},{"$f":"U21+1","v":62}]
[null,"Street Car"]
[{"$f":"A22+1","v":63},null,"AM/PM Peak Period Vehicles",null,null,null,null,null,null,null,null,null,null,null,null,{"$f":"MAX(D24:F24)","v":0},{"$f":"MAX(G24:I24)","v":0},{"$f":"MAX(J24:L24)","v":0},{"$f":"MAX(M24:O24)","v":0},{"$f":"MAX(P24:S24)","v":0},{"$f":"U22+1","v":63}]
[{"$f":"A24+1","v":64},null,"Midday Vehicles",null,null,null,null,null,null,null,null,null,null,null,null,{"$f":"MAX(D25:F25)","v":0},{"$f":"MAX(G25:I25)","v":0},{"$f":"MAX(J25:L25)","v":0},{"$f":"MAX(M25:O25)","v":0},{"$f":"MAX(P25:S25)","v":0},{"$f":"U24+1","v":64}]
[{"$f":"A25+1","v":65},null,"Total Unlinked Passenger Trips",null,null,null,null,null,null,null,null,null,null,null,null,{"$f":"D26+E26+F26","v":0},{"$f":"G26+H26+I26","v":0},{"$f":"J26+K26+L26","v":0},{"$f":"M26+N26+O26","v":0},{"$f":"SUM(D26:O26)","v":0},{"$f":"U25+1","v":65}]
[{"$f":"A26+1","v":66},null,"Vehicle Revenue Miles",null,null,null,null,null,null,null,null,null,null,null,null,{"$f":"D27+E27+F27","v":0},{"$f":"G27+H27+I27","v":0},{"$f":"J27+K27+L27","v":0},{"$f":"M27+N27+O27","v":0},{"$f":"SUM(D27:O27)","v":0},{"$f":"U26+1","v":66}]
[{"$f":"A27+1","v":67},null,"Vehicle Revenue Hours",null,null,null,null,null,null,null,null,null,null,null,null,{"$f":"D28+E28+F28","v":0},{"$f":"G28+H28+I28","v":0},{"$f":"J28+K28+L28","v":0},{"$f":"M28+N28+O28","v":0},{"$f":"SUM(D28:O28)","v":0},{"$f":"U27+1","v":67}]
[null,"Vanpool"]
[{"$f":"A28+1","v":68},null,"AM/PM Peak Period Vehicles",null,null,null,null,null,null,null,null,null,null,null,null,{"$f":"MAX(D30:F30)","v":0},{"$f":"MAX(G30:I30)","v":0},{"$f":"MAX(J30:L30)","v":0},{"$f":"MAX(M30:O30)","v":0},{"$f":"MAX(P30:S30)","v":0},{"$f":"U28+1","v":68}]
[{"$f":"A30+1","v":69},null,"Midday Vehicles",null,null,null,null,null,null,null,null,null,null,null,null,{"$f":"MAX(D31:F31)","v":0},{"$f":"MAX(G31:I31)","v":0},{"$f":"MAX(J31:L31)","v":0},{"$f":"MAX(M31:O31)","v":0},{"$f":"MAX(P31:S31)","v":0},{"$f":"U30+1","v":69}]
[{"$f":"A31+1","v":70},null,"Total Unlinked Passenger Trips",null,null,null,null,null,null,null,null,null,null,null,null,{"$f":"D32+E32+F32","v":0},{"$f":"G32+H32+I32","v":0},{"$f":"J32+K32+L32","v":0},{"$f":"M32+N32+O32","v":0},{"$f":"SUM(D32:O32)","v":0},{"$f":"U31+1","v":70}]
[{"$f":"A32+1","v":71},null,"Vehicle Revenue Miles",null,null,null,null,null,null,null,null,null,null,null,null,{"$f":"D33+E33+F33","v":0},{"$f":"G33+H33+I33","v":0},{"$f":"J33+K33+L33","v":0},{"$f":"M33+N33+O33","v":0},{"$f":"SUM(D33:O33)","v":0},{"$f":"U32+1","v":71}]
[{"$f":"A33+1","v":72},null,"Vehicle Revenue Hours",null,null,null,null,null,null,null,null,null,null,null,null,{"$f":"D34+E34+F34","v":0},{"$f":"G34+H34+I34","v":0},{"$f":"J34+K34+L34","v":0},{"$f":"M34+N34+O34","v":0},{"$f":"SUM(D34:O34)","v":0},{"$f":"U33+1","v":72}]
[null,"Microtransit"]
[{"$f":"A34+1","v":73},null,"AM/PM Peak Period Vehicles",null,null,null,null,null,null,null,null,null,null,null,null,{"$f":"MAX(D36:F36)","v":0},{"$f":"MAX(G36:I36)","v":0},{"$f":"MAX(J36:L36)","v":0},{"$f":"MAX(M36:O36)","v":0},{"$f":"MAX(P36:S36)","v":0},{"$f":"U34+1","v":73}]
[{"$f":"A36+1","v":74},null,"Midday Vehicles",null,null,null,null,null,null,null,null,null,null,null,null,{"$f":"MAX(D37:F37)","v":0},{"$f":"MAX(G37:I37)","v":0},{"$f":"MAX(J37:L37)","v":0},{"$f":"MAX(M37:O37)","v":0},{"$f":"MAX(P37:S37)","v":0},{"$f":"U36+1","v":74}]
[{"$f":"A37+1","v":75},null,"Total Unlinked Passenger Trips",null,null,null,null,null,null,null,null,null,null,null,null,{"$f":"D38+E38+F38","v":0},{"$f":"G38+H38+I38","v":0},{"$f":"J38+K38+L38","v":0},{"$f":"M38+N38+O38","v":0},{"$f":"SUM(D38:O38)","v":0},{"$f":"U37+1","v":75}]
[{"$f":"A38+1","v":76},null,"Vehicle Revenue Miles",null,null,null,null,null,null,null,null,null,null,null,null,{"$f":"D39+E39+F39","v":0},{"$f":"G39+H39+I39","v":0},{"$f":"J39+K39+L39","v":0},{"$f":"M39+N39+O39","v":0},{"$f":"SUM(D39:O39)","v":0},{"$f":"U38+1","v":76}]
[{"$f":"A39+1","v":77},null,"Vehicle Revenue Hours",null,null,null,null,null,null,null,null,null,null,null,null,{"$f":"D40+E40+F40","v":0},{"$f":"G40+H40+I40","v":0},{"$f":"J40+K40+L40","v":0},{"$f":"M40+N40+O40","v":0},{"$f":"SUM(D40:O40)","v":0},{"$f":"U39+1","v":77}]
[null,null,null,"A","B","C","D","E","F","G","H","I","J","K","L"]

{"sheet":"Sunday","index":4,"n_rows":41,"n_cols":21,"rows_kept":41,"cut":false,"hidden":true,"merged":[[2,1,2,2]]}
[null,{"$f":"\"4. SUNDAY: \"&Overview!D4","v":"4. SUNDAY: "}]
[null,null,null,"A","B","C","D","E","F","G","H","I","J","K","L"]
[null,{"$f":"Overview!B2","v":"FY2024"},null,"July","August","September","October","November","December","January","February","March","April","May","June","Quarter 1","Quarter 2","Quarter 3","Quarter 4","YTD Totals"]
[{"$f":"Saturday!A40+1","v":78},null,"Operating Days",null,null,null,null,null,null,null,null,null,null,null,null,{"$f":"D4+E4+F4","v":0},{"$f":"G4+H4+I4","v":0},{"$f":"J4+K4+L4","v":0},{"$f":"M4+N4+O4","v":0},{"$f":"SUM(D4:O4)","v":0},{"$f":"Saturday!U40+1","v":78}]
[null,"Fixed Route"]
[{"$f":"A4+1","v":79},null,"AM/PM Peak Period Vehicles",null,null,null,null,null,null,null,null,null,null,null,null,{"$f":"MAX(D6:F6)","v":0},{"$f":"MAX(G6:I6)","v":0},{"$f":"MAX(J6:L6)","v":0},{"$f":"MAX(M6:O6)","v":0},{"$f":"MAX(P6:S6)","v":0},{"$f":"U4+1","v":79}]
[{"$f":"A6+1","v":80},null,"Midday Vehicles",null,null,null,null,null,null,null,null,null,null,null,null,{"$f":"MAX(D7:F7)","v":0},{"$f":"MAX(G7:I7)","v":0},{"$f":"MAX(J7:L7)","v":0},{"$f":"MAX(M7:O7)","v":0},{"$f":"MAX(P7:S7)","v":0},{"$f":"U6+1","v":80}]
[{"$f":"A7+1","v":81},null,"Total Unlinked Passenger Trips",null,null,null,null,null,null,null,null,null,null,null,null,{"$f":"D8+E8+F8","v":0},{"$f":"G8+H8+I8","v":0},{"$f":"J8+K8+L8","v":0},{"$f":"M8+N8+O8","v":0},{"$f":"SUM(D8:O8)","v":0},{"$f":"U7+1","v":81}]
[{"$f":"A8+1","v":82},null,"Vehicle Revenue Miles",null,null,null,null,null,null,null,null,null,null,null,null,{"$f":"D9+E9+F9","v":0},{"$f":"G9+H9+I9","v":0},{"$f":"J9+K9+L9","v":0},{"$f":"M9+N9+O9","v":0},{"$f":"SUM(D9:O9)","v":0},{"$f":"U8+1","v":82}]
[{"$f":"A9+1","v":83},null,"Vehicle Revenue Hours",null,null,null,null,null,null,null,null,null,null,null,null,{"$f":"D10+E10+F10","v":0},{"$f":"G10+H10+I10","v":0},{"$f":"J10+K10+L10","v":0},{"$f":"M10+N10+O10","v":0},{"$f":"SUM(D10:O10)","v":0},{"$f":"U9+1","v":83}]
[null,"Dial-A-Ride"]
[{"$f":"A10+1","v":84},null,"AM/PM Peak Period Vehicles",null,null,null,null,null,null,null,null,null,null,null,null,{"$f":"MAX(D12:F12)","v":0},{"$f":"MAX(G12:I12)","v":0},{"$f":"MAX(J12:L12)","v":0},{"$f":"MAX(M12:O12)","v":0},{"$f":"MAX(P12:S12)","v":0},{"$f":"U10+1","v":84}]
[{"$f":"A12+1","v":85},null,"Midday Vehicles",null,null,null,null,null,null,null,null,null,null,null,null,{"$f":"MAX(D13:F13)","v":0},{"$f":"MAX(G13:I13)","v":0},{"$f":"MAX(J13:L13)","v":0},{"$f":"MAX(M13:O13)","v":0},{"$f":"MAX(P13:S13)","v":0},{"$f":"U12+1","v":85}]
[{"$f":"A13+1","v":86},null,"Total Unlinked Passenger Trips",null,null,null,null,null,null,null,null,null,null,null,null,{"$f":"D14+E14+F14","v":0},{"$f":"G14+H14+I14","v":0},{"$f":"J14+K14+L14","v":0},{"$f":"M14+N14+O14","v":0},{"$f":"SUM(D14:O14)","v":0},{"$f":"U13+1","v":86}]
[{"$f":"A14+1","v":87},null,"Vehicle Revenue Miles",null,null,null,null,null,null,null,null,null,null,null,null,{"$f":"D15+E15+F15","v":0},{"$f":"G15+H15+I15","v":0},{"$f":"J15+K15+L15","v":0},{"$f":"M15+N15+O15","v":0},{"$f":"SUM(D15:O15)","v":0},{"$f":"U14+1","v":87}]
[{"$f":"A15+1","v":88},null,"Vehicle Revenue Hours",null,null,null,null,null,null,null,null,null,null,null,null,{"$f":"D16+E16+F16","v":0},{"$f":"G16+H16+I16","v":0},{"$f":"J16+K16+L16","v":0},{"$f":"M16+N16+O16","v":0},{"$f":"SUM(D16:O16)","v":0},{"$f":"U15+1","v":88}]
[null,"Light Rail"]
[{"$f":"A16+1","v":89},null,"AM/PM Peak Period Trains",null,null,null,null,null,null,null,null,null,null,null,null,{"$f":"MAX(D18:F18)","v":0},{"$f":"MAX(G18:I18)","v":0},{"$f":"MAX(J18:L18)","v":0},{"$f":"MAX(M18:O18)","v":0},{"$f":"MAX(P18:S18)","v":0},{"$f":"U16+1","v":89}]
[{"$f":"A18+1","v":90},null,"Midday Trains",null,null,null,null,null,null,null,null,null,null,null,null,{"$f":"MAX(D19:F19)","v":0},{"$f":"MAX(G19:I19)","v":0},{"$f":"MAX(J19:L19)","v":0},{"$f":"MAX(M19:O19)","v":0},{"$f":"MAX(P19:S19)","v":0},{"$f":"U18+1","v":90}]
[{"$f":"A19+1","v":91},null,"Total Unlinked Passenger Trips",null,null,null,null,null,null,null,null,null,null,null,null,{"$f":"D20+E20+F20","v":0},{"$f":"G20+H20+I20","v":0},{"$f":"J20+K20+L20","v":0},{"$f":"M20+N20+O20","v":0},{"$f":"SUM(D20:O20)","v":0},{"$f":"U19+1","v":91}]
[{"$f":"A20+1","v":92},null,"Train Revenue Miles",null,null,null,null,null,null,null,null,null,null,null,null,{"$f":"D21+E21+F21","v":0},{"$f":"G21+H21+I21","v":0},{"$f":"J21+K21+L21","v":0},{"$f":"M21+N21+O21","v":0},{"$f":"SUM(D21:O21)","v":0},{"$f":"U20+1","v":92}]
[{"$f":"A21+1","v":93},null,"Train Revenue Hours",null,null,null,null,null,null,null,null,null,null,null,null,{"$f":"D22+E22+F22","v":0},{"$f":"G22+H22+I22","v":0},{"$f":"J22+K22+L22","v":0},{"$f":"M22+N22+O22","v":0},{"$f":"SUM(D22:O22)","v":0},{"$f":"U21+1","v":93}]
[null,"Street Car"]
[{"$f":"A22+1","v":94},null,"AM/PM Peak Period Vehicles",null,null,null,null,null,null,null,null,null,null,null,null,{"$f":"MAX(D24:F24)","v":0},{"$f":"MAX(G24:I24)","v":0},{"$f":"MAX(J24:L24)","v":0},{"$f":"MAX(M24:O24)","v":0},{"$f":"MAX(P24:S24)","v":0},{"$f":"U22+1","v":94}]
[{"$f":"A24+1","v":95},null,"Midday Vehicles",null,null,null,null,null,null,null,null,null,null,null,null,{"$f":"MAX(D25:F25)","v":0},{"$f":"MAX(G25:I25)","v":0},{"$f":"MAX(J25:L25)","v":0},{"$f":"MAX(M25:O25)","v":0},{"$f":"MAX(P25:S25)","v":0},{"$f":"U24+1","v":95}]
[{"$f":"A25+1","v":96},null,"Total Unlinked Passenger Trips",null,null,null,null,null,null,null,null,null,null,null,null,{"$f":"D26+E26+F26","v":0},{"$f":"G26+H26+I26","v":0},{"$f":"J26+K26+L26","v":0},{"$f":"M26+N26+O26","v":0},{"$f":"SUM(D26:O26)","v":0},{"$f":"U25+1","v":96}]
[{"$f":"A26+1","v":97},null,"Vehicle Revenue Miles",null,null,null,null,null,null,null,null,null,null,null,null,{"$f":"D27+E27+F27","v":0},{"$f":"G27+H27+I27","v":0},{"$f":"J27+K27+L27","v":0},{"$f":"M27+N27+O27","v":0},{"$f":"SUM(D27:O27)","v":0},{"$f":"U26+1","v":97}]
[{"$f":"A27+1","v":98},null,"Vehicle Revenue Hours",null,null,null,null,null,null,null,null,null,null,null,null,{"$f":"D28+E28+F28","v":0},{"$f":"G28+H28+I28","v":0},{"$f":"J28+K28+L28","v":0},{"$f":"M28+N28+O28","v":0},{"$f":"SUM(D28:O28)","v":0},{"$f":"U27+1","v":98}]
[null,"Vanpool"]
[{"$f":"A28+1","v":99},null,"AM/PM Peak Period Vehicles",null,null,null,null,null,null,null,null,null,null,null,null,{"$f":"MAX(D30:F30)","v":0},{"$f":"MAX(G30:I30)","v":0},{"$f":"MAX(J30:L30)","v":0},{"$f":"MAX(M30:O30)","v":0},{"$f":"MAX(P30:S30)","v":0},{"$f":"U28+1","v":99}]
[{"$f":"A30+1","v":100},null,"Midday Vehicles",null,null,null,null,null,null,null,null,null,null,null,null,{"$f":"MAX(D31:F31)","v":0},{"$f":"MAX(G31:I31)","v":0},{"$f":"MAX(J31:L31)","v":0},{"$f":"MAX(M31:O31)","v":0},{"$f":"MAX(P31:S31)","v":0},{"$f":"U30+1","v":100}]
[{"$f":"A31+1","v":101},null,"Total Unlinked Passenger Trips",null,null,null,null,null,null,null,null,null,null,null,null,{"$f":"D32+E32+F32","v":0},{"$f":"G32+H32+I32","v":0},{"$f":"J32+K32+L32","v":0},{"$f":"M32+N32+O32","v":0},{"$f":"SUM(D32:O32)","v":0},{"$f":"U31+1","v":101}]
[{"$f":"A32+1","v":102},null,"Vehicle Revenue Miles",null,null,null,null,null,null,null,null,null,null,null,null,{"$f":"D33+E33+F33","v":0},{"$f":"G33+H33+I33","v":0},{"$f":"J33+K33+L33","v":0},{"$f":"M33+N33+O33","v":0},{"$f":"SUM(D33:O33)","v":0},{"$f":"U32+1","v":102}]
[{"$f":"A33+1","v":103},null,"Vehicle Revenue Hours",null,null,null,null,null,null,null,null,null,null,null,null,{"$f":"D34+E34+F34","v":0},{"$f":"G34+H34+I34","v":0},{"$f":"J34+K34+L34","v":0},{"$f":"M34+N34+O34","v":0},{"$f":"SUM(D34:O34)","v":0},{"$f":"U33+1","v":103}]
[null,"Microtransit"]
[{"$f":"A34+1","v":104},null,"AM/PM Peak Period Vehicles",null,null,null,null,null,null,null,null,null,null,null,null,{"$f":"MAX(D36:F36)","v":0},{"$f":"MAX(G36:I36)","v":0},{"$f":"MAX(J36:L36)","v":0},{"$f":"MAX(M36:O36)","v":0},{"$f":"MAX(P36:S36)","v":0},{"$f":"U34+1","v":104}]
[{"$f":"A36+1","v":105},null,"Midday Vehicles",null,null,null,null,null,null,null,null,null,null,null,null,{"$f":"MAX(D37:F37)","v":0},{"$f":"MAX(G37:I37)","v":0},{"$f":"MAX(J37:L37)","v":0},{"$f":"MAX(M37:O37)","v":0},{"$f":"MAX(P37:S37)","v":0},{"$f":"U36+1","v":105}]
[{"$f":"A37+1","v":106},null,"Total Unlinked Passenger Trips",null,null,null,null,null,null,null,null,null,null,null,null,{"$f":"D38+E38+F38","v":0},{"$f":"G38+H38+I38","v":0},{"$f":"J38+K38+L38","v":0},{"$f":"M38+N38+O38","v":0},{"$f":"SUM(D38:O38)","v":0},{"$f":"U37+1","v":106}]
[{"$f":"A38+1","v":107},null,"Vehicle Revenue Miles",null,null,null,null,null,null,null,null,null,null,null,null,{"$f":"D39+E39+F39","v":0},{"$f":"G39+H39+I39","v":0},{"$f":"J39+K39+L39","v":0},{"$f":"M39+N39+O39","v":0},{"$f":"SUM(D39:O39)","v":0},{"$f":"U38+1","v":107}]
[{"$f":"A39+1","v":108},null,"Vehicle Revenue Hours",null,null,null,null,null,null,null,null,null,null,null,null,{"$f":"D40+E40+F40","v":0},{"$f":"G40+H40+I40","v":0},{"$f":"J40+K40+L40","v":0},{"$f":"M40+N40+O40","v":0},{"$f":"SUM(D40:O40)","v":0},{"$f":"U39+1","v":108}]
[null,null,null,"A","B","C","D","E","F","G","H","I","J","K","L"]

{"sheet":"Weekly Totals","index":5,"n_rows":41,"n_cols":21,"rows_kept":41,"cut":false,"hidden":true,"merged":[[2,1,2,2]]}
[null,{"$f":"\"5. WEEKLY TOTALS: \"&Overview!D4","v":"5. WEEKLY TOTALS: "}]
[null,null,null,"A","B","C","D","E","F","G","H","I","J","K","L"]
[null,{"$f":"Overview!B2","v":"FY2024"},null,"July","August","September","October","November","December","January","February","March","April","May","June","Quarter 1","Quarter 2","Quarter 3","Quarter 4","YTD Totals"]
[{"$f":"Sunday!A40+1","v":109},null,"Operating Days",{"$f":"Weekday!D4+Saturday!D4+Sunday!D4","v":0},{"$f":"Weekday!E4+Saturday!E4+Sunday!E4","v":0},{"$f":"Weekday!F4+Saturday!F4+Sunday!F4","v":0},{"$f":"Weekday!G4+Saturday!G4+Sunday!G4","v":0},{"$f":"Weekday!H4+Saturday!H4+Sunday!H4","v":0},{"$f":"Weekday!I4+Saturday!I4+Sunday!I4","v":0},{"$f":"Weekday!J4+Saturday!J4+Sunday!J4","v":0},{"$f":"Weekday!K4+Saturday!K4+Sunday!K4","v":0},{"$f":"Weekday!L4+Saturday!L4+Sunday!L4","v":0},{"$f":"Weekday!M4+Saturday!M4+Sunday!M4","v":0},{"$f":"Weekday!N4+Saturday!N4+Sunday!N4","v":0},{"$f":"Weekday!O4+Saturday!O4+Sunday!O4","v":0},{"$f":"D4+E4+F4","v":0},{"$f":"G4+H4+I4","v":0},{"$f":"J4+K4+L4","v":0},{"$f":"M4+N4+O4","v":0},{"$f":"SUM(D4:O4)","v":0},{"$f":"Sunday!U40+1","v":109}]
[null,"Fixed Route"]
[{"$f":"A4+1","v":110},null,"AM/PM Peak Period Vehicles",{"$f":"MAX(Weekday!D6,Saturday!D6,Sunday!D6)","v":0},{"$f":"MAX(Weekday!E6,Saturday!E6,Sunday!E6)","v":0},{"$f":"MAX(Weekday!F6,Saturday!F6,Sunday!F6)","v":0},{"$f":"MAX(Weekday!G6,Saturday!G6,Sunday!G6)","v":0},{"$f":"MAX(Weekday!H6,Saturday!H6,Sunday!H6)","v":0},{"$f":"MAX(Weekday!I6,Saturday!I6,Sunday!I6)","v":0},{"$f":"MAX(Weekday!J6,Saturday!J6,Sunday!J6)","v":0},{"$f":"MAX(Weekday!K6,Saturday!K6,Sunday!K6)","v":0},{"$f":"MAX(Weekday!L6,Saturday!L6,Sunday!L6)","v":0},{"$f":"MAX(Weekday!M6,Saturday!M6,Sunday!M6)","v":0},{"$f":"MAX(Weekday!N6,Saturday!N6,Sunday!N6)","v":0},{"$f":"MAX(Weekday!O6,Saturday!O6,Sunday!O6)","v":0},{"$f":"MAX(D6:F6)","v":0},{"$f":"MAX(G6:I6)","v":0},{"$f":"MAX(J6:L6)","v":0},{"$f":"MAX(M6:O6)","v":0},{"$f":"MAX(P6:S6)","v":0},{"$f":"U4+1","v":110}]
[{"$f":"A6+1","v":111},null,"Midday Vehicles",{"$f":"MAX(Weekday!D7,Saturday!D7,Sunday!D7)","v":0},{"$f":"MAX(Weekday!E7,Saturday!E7,Sunday!E7)","v":0},{"$f":"MAX(Weekday!F7,Saturday!F7,Sunday!F7)","v":0},{"$f":"MAX(Weekday!G7,Saturday!G7,Sunday!G7)","v":0},{"$f":"MAX(Weekday!H7,Saturday!H7,Sunday!H7)","v":0},{"$f":"MAX(Weekday!I7,Saturday!I7,Sunday!I7)","v":0},{"$f":"MAX(Weekday!J7,Saturday!J7,Sunday!J7)","v":0},{"$f":"MAX(Weekday!K7,Saturday!K7,Sunday!K7)","v":0},{"$f":"MAX(Weekday!L7,Saturday!L7,Sunday!L7)","v":0},{"$f":"MAX(Weekday!M7,Saturday!M7,Sunday!M7)","v":0},{"$f":"MAX(Weekday!N7,Saturday!N7,Sunday!N7)","v":0},{"$f":"MAX(Weekday!O7,Saturday!O7,Sunday!O7)","v":0},{"$f":"MAX(D7:F7)","v":0},{"$f":"MAX(G7:I7)","v":0},{"$f":"MAX(J7:L7)","v":0},{"$f":"MAX(M7:O7)","v":0},{"$f":"MAX(P7:S7)","v":0},{"$f":"U6+1","v":111}]
[{"$f":"A7+1","v":112},null,"Total Unlinked Passenger Trips",{"$f":"Weekday!D8+Saturday!D8+Sunday!D8","v":0},{"$f":"Weekday!E8+Saturday!E8+Sunday!E8","v":0},{"$f":"Weekday!F8+Saturday!F8+Sunday!F8","v":0},{"$f":"Weekday!G8+Saturday!G8+Sunday!G8","v":0},{"$f":"Weekday!H8+Saturday!H8+Sunday!H8","v":0},{"$f":"Weekday!I8+Saturday!I8+Sunday!I8","v":0},{"$f":"Weekday!J8+Saturday!J8+Sunday!J8","v":0},{"$f":"Weekday!K8+Saturday!K8+Sunday!K8","v":0},{"$f":"Weekday!L8+Saturday!L8+Sunday!L8","v":0},{"$f":"Weekday!M8+Saturday!M8+Sunday!M8","v":0},{"$f":"Weekday!N8+Saturday!N8+Sunday!N8","v":0},{"$f":"Weekday!O8+Saturday!O8+Sunday!O8","v":0},{"$f":"D8+E8+F8","v":0},{"$f":"G8+H8+I8","v":0},{"$f":"J8+K8+L8","v":0},{"$f":"M8+N8+O8","v":0},{"$f":"SUM(D8:O8)","v":0},{"$f":"U7+1","v":112}]
[{"$f":"A8+1","v":113},null,"Vehicle Revenue Miles",{"$f":"Weekday!D9+Saturday!D9+Sunday!D9","v":0},{"$f":"Weekday!E9+Saturday!E9+Sunday!E9","v":0},{"$f":"Weekday!F9+Saturday!F9+Sunday!F9","v":0},{"$f":"Weekday!G9+Saturday!G9+Sunday!G9","v":0},{"$f":"Weekday!H9+Saturday!H9+Sunday!H9","v":0},{"$f":"Weekday!I9+Saturday!I9+Sunday!I9","v":0},{"$f":"Weekday!J9+Saturday!J9+Sunday!J9","v":0},{"$f":"Weekday!K9+Saturday!K9+Sunday!K9","v":0},{"$f":"Weekday!L9+Saturday!L9+Sunday!L9","v":0},{"$f":"Weekday!M9+Saturday!M9+Sunday!M9","v":0},{"$f":"Weekday!N9+Saturday!N9+Sunday!N9","v":0},{"$f":"Weekday!O9+Saturday!O9+Sunday!O9","v":0},{"$f":"D9+E9+F9","v":0},{"$f":"G9+H9+I9","v":0},{"$f":"J9+K9+L9","v":0},{"$f":"M9+N9+O9","v":0},{"$f":"SUM(D9:O9)","v":0},{"$f":"U8+1","v":113}]
[{"$f":"A9+1","v":114},null,"Vehicle Revenue Hours",{"$f":"Weekday!D10+Saturday!D10+Sunday!D10","v":0},{"$f":"Weekday!E10+Saturday!E10+Sunday!E10","v":0},{"$f":"Weekday!F10+Saturday!F10+Sunday!F10","v":0},{"$f":"Weekday!G10+Saturday!G10+Sunday!G10","v":0},{"$f":"Weekday!H10+Saturday!H10+Sunday!H10","v":0},{"$f":"Weekday!I10+Saturday!I10+Sunday!I10","v":0},{"$f":"Weekday!J10+Saturday!J10+Sunday!J10","v":0},{"$f":"Weekday!K10+Saturday!K10+Sunday!K10","v":0},{"$f":"Weekday!L10+Saturday!L10+Sunday!L10","v":0},{"$f":"Weekday!M10+Saturday!M10+Sunday!M10","v":0},{"$f":"Weekday!N10+Saturday!N10+Sunday!N10","v":0},{"$f":"Weekday!O10+Saturday!O10+Sunday!O10","v":0},{"$f":"D10+E10+F10","v":0},{"$f":"G10+H10+I10","v":0},{"$f":"J10+K10+L10","v":0},{"$f":"M10+N10+O10","v":0},{"$f":"SUM(D10:O10)","v":0},{"$f":"U9+1","v":114}]
[null,"Dial-A-Ride"]
[{"$f":"A10+1","v":115},null,"AM/PM Peak Period Vehicles",{"$f":"MAX(Weekday!D12,Saturday!D12,Sunday!D12)","v":0},{"$f":"MAX(Weekday!E12,Saturday!E12,Sunday!E12)","v":0},{"$f":"MAX(Weekday!F12,Saturday!F12,Sunday!F12)","v":0},{"$f":"MAX(Weekday!G12,Saturday!G12,Sunday!G12)","v":0},{"$f":"MAX(Weekday!H12,Saturday!H12,Sunday!H12)","v":0},{"$f":"MAX(Weekday!I12,Saturday!I12,Sunday!I12)","v":0},{"$f":"MAX(Weekday!J12,Saturday!J12,Sunday!J12)","v":0},{"$f":"MAX(Weekday!K12,Saturday!K12,Sunday!K12)","v":0},{"$f":"MAX(Weekday!L12,Saturday!L12,Sunday!L12)","v":0},{"$f":"MAX(Weekday!M12,Saturday!M12,Sunday!M12)","v":0},{"$f":"MAX(Weekday!N12,Saturday!N12,Sunday!N12)","v":0},{"$f":"MAX(Weekday!O12,Saturday!O12,Sunday!O12)","v":0},{"$f":"MAX(D12:F12)","v":0},{"$f":"MAX(G12:I12)","v":0},{"$f":"MAX(J12:L12)","v":0},{"$f":"MAX(M12:O12)","v":0},{"$f":"MAX(P12:S12)","v":0},{"$f":"U10+1","v":115}]
[{"$f":"A12+1","v":116},null,"Midday Vehicles",{"$f":"MAX(Weekday!D13,Saturday!D13,Sunday!D13)","v":0},{"$f":"MAX(Weekday!E13,Saturday!E13,Sunday!E13)","v":0},{"$f":"MAX(Weekday!F13,Saturday!F13,Sunday!F13)","v":0},{"$f":"MAX(Weekday!G13,Saturday!G13,Sunday!G13)","v":0},{"$f":"MAX(Weekday!H13,Saturday!H13,Sunday!H13)","v":0},{"$f":"MAX(Weekday!I13,Saturday!I13,Sunday!I13)","v":0},{"$f":"MAX(Weekday!J13,Saturday!J13,Sunday!J13)","v":0},{"$f":"MAX(Weekday!K13,Saturday!K13,Sunday!K13)","v":0},{"$f":"MAX(Weekday!L13,Saturday!L13,Sunday!L13)","v":0},{"$f":"MAX(Weekday!M13,Saturday!M13,Sunday!M13)","v":0},{"$f":"MAX(Weekday!N13,Saturday!N13,Sunday!N13)","v":0},{"$f":"MAX(Weekday!O13,Saturday!O13,Sunday!O13)","v":0},{"$f":"MAX(D13:F13)","v":0},{"$f":"MAX(G13:I13)","v":0},{"$f":"MAX(J13:L13)","v":0},{"$f":"MAX(M13:O13)","v":0},{"$f":"MAX(P13:S13)","v":0},{"$f":"U12+1","v":116}]
[{"$f":"A13+1","v":117},null,"Total Unlinked Passenger Trips",{"$f":"Weekday!D14+Saturday!D14+Sunday!D14","v":0},{"$f":"Weekday!E14+Saturday!E14+Sunday!E14","v":0},{"$f":"Weekday!F14+Saturday!F14+Sunday!F14","v":0},{"$f":"Weekday!G14+Saturday!G14+Sunday!G14","v":0},{"$f":"Weekday!H14+Saturday!H14+Sunday!H14","v":0},{"$f":"Weekday!I14+Saturday!I14+Sunday!I14","v":0},{"$f":"Weekday!J14+Saturday!J14+Sunday!J14","v":0},{"$f":"Weekday!K14+Saturday!K14+Sunday!K14","v":0},{"$f":"Weekday!L14+Saturday!L14+Sunday!L14","v":0},{"$f":"Weekday!M14+Saturday!M14+Sunday!M14","v":0},{"$f":"Weekday!N14+Saturday!N14+Sunday!N14","v":0},{"$f":"Weekday!O14+Saturday!O14+Sunday!O14","v":0},{"$f":"D14+E14+F14","v":0},{"$f":"G14+H14+I14","v":0},{"$f":"J14+K14+L14","v":0},{"$f":"M14+N14+O14","v":0},{"$f":"SUM(D14:O14)","v":0},{"$f":"U13+1","v":117}]
[{"$f":"A14+1","v":118},null,"Vehicle Revenue Miles",{"$f":"Weekday!D15+Saturday!D15+Sunday!D15","v":0},{"$f":"Weekday!E15+Saturday!E15+Sunday!E15","v":0},{"$f":"Weekday!F15+Saturday!F15+Sunday!F15","v":0},{"$f":"Weekday!G15+Saturday!G15+Sunday!G15","v":0},{"$f":"Weekday!H15+Saturday!H15+Sunday!H15","v":0},{"$f":"Weekday!I15+Saturday!I15+Sunday!I15","v":0},{"$f":"Weekday!J15+Saturday!J15+Sunday!J15","v":0},{"$f":"Weekday!K15+Saturday!K15+Sunday!K15","v":0},{"$f":"Weekday!L15+Saturday!L15+Sunday!L15","v":0},{"$f":"Weekday!M15+Saturday!M15+Sunday!M15","v":0},{"$f":"Weekday!N15+Saturday!N15+Sunday!N15","v":0},{"$f":"Weekday!O15+Saturday!O15+Sunday!O15","v":0},{"$f":"D15+E15+F15","v":0},{"$f":"G15+H15+I15","v":0},{"$f":"J15+K15+L15","v":0},{"$f":"M15+N15+O15","v":0},{"$f":"SUM(D15:O15)","v":0},{"$f":"U14+1","v":118}]
[{"$f":"A15+1","v":119},null,"Vehicle Revenue Hours",{"$f":"Weekday!D16+Saturday!D16+Sunday!D16","v":0},{"$f":"Weekday!E16+Saturday!E16+Sunday!E16","v":0},{"$f":"Weekday!F16+Saturday!F16+Sunday!F16","v":0},{"$f":"Weekday!G16+Saturday!G16+Sunday!G16","v":0},{"$f":"Weekday!H16+Saturday!H16+Sunday!H16","v":0},{"$f":"Weekday!I16+Saturday!I16+Sunday!I16","v":0},{"$f":"Weekday!J16+Saturday!J16+Sunday!J16","v":0},{"$f":"Weekday!K16+Saturday!K16+Sunday!K16","v":0},{"$f":"Weekday!L16+Saturday!L16+Sunday!L16","v":0},{"$f":"Weekday!M16+Saturday!M16+Sunday!M16","v":0},{"$f":"Weekday!N16+Saturday!N16+Sunday!N16","v":0},{"$f":"Weekday!O16+Saturday!O16+Sunday!O16","v":0},{"$f":"D16+E16+F16","v":0},{"$f":"G16+H16+I16","v":0},{"$f":"J16+K16+L16","v":0},{"$f":"M16+N16+O16","v":0},{"$f":"SUM(D16:O16)","v":0},{"$f":"U15+1","v":119}]
[null,"Light Rail"]
[{"$f":"A16+1","v":120},null,"AM/PM Peak Period Trains",{"$f":"MAX(Weekday!D18,Saturday!D18,Sunday!D18)","v":0},{"$f":"MAX(Weekday!E18,Saturday!E18,Sunday!E18)","v":0},{"$f":"MAX(Weekday!F18,Saturday!F18,Sunday!F18)","v":0},{"$f":"MAX(Weekday!G18,Saturday!G18,Sunday!G18)","v":0},{"$f":"MAX(Weekday!H18,Saturday!H18,Sunday!H18)","v":0},{"$f":"MAX(Weekday!I18,Saturday!I18,Sunday!I18)","v":0},{"$f":"MAX(Weekday!J18,Saturday!J18,Sunday!J18)","v":0},{"$f":"MAX(Weekday!K18,Saturday!K18,Sunday!K18)","v":0},{"$f":"MAX(Weekday!L18,Saturday!L18,Sunday!L18)","v":0},{"$f":"MAX(Weekday!M18,Saturday!M18,Sunday!M18)","v":0},{"$f":"MAX(Weekday!N18,Saturday!N18,Sunday!N18)","v":0},{"$f":"MAX(Weekday!O18,Saturday!O18,Sunday!O18)","v":0},{"$f":"MAX(D18:F18)","v":0},{"$f":"MAX(G18:I18)","v":0},{"$f":"MAX(J18:L18)","v":0},{"$f":"MAX(M18:O18)","v":0},{"$f":"MAX(P18:S18)","v":0},{"$f":"U16+1","v":120}]
[{"$f":"A18+1","v":121},null,"Midday Trains",{"$f":"MAX(Weekday!D19,Saturday!D19,Sunday!D19)","v":0},{"$f":"MAX(Weekday!E19,Saturday!E19,Sunday!E19)","v":0},{"$f":"MAX(Weekday!F19,Saturday!F19,Sunday!F19)","v":0},{"$f":"MAX(Weekday!G19,Saturday!G19,Sunday!G19)","v":0},{"$f":"MAX(Weekday!H19,Saturday!H19,Sunday!H19)","v":0},{"$f":"MAX(Weekday!I19,Saturday!I19,Sunday!I19)","v":0},{"$f":"MAX(Weekday!J19,Saturday!J19,Sunday!J19)","v":0},{"$f":"MAX(Weekday!K19,Saturday!K19,Sunday!K19)","v":0},{"$f":"MAX(Weekday!L19,Saturday!L19,Sunday!L19)","v":0},{"$f":"MAX(Weekday!M19,Saturday!M19,Sunday!M19)","v":0},{"$f":"MAX(Weekday!N19,Saturday!N19,Sunday!N19)","v":0},{"$f":"MAX(Weekday!O19,Saturday!O19,Sunday!O19)","v":0},{"$f":"MAX(D19:F19)","v":0},{"$f":"MAX(G19:I19)","v":0},{"$f":"MAX(J19:L19)","v":0},{"$f":"MAX(M19:O19)","v":0},{"$f":"MAX(P19:S19)","v":0},{"$f":"U18+1","v":121}]
[{"$f":"A19+1","v":122},null,"Total Unlinked Passenger Trips",{"$f":"Weekday!D20+Saturday!D20+Sunday!D20","v":0},{"$f":"Weekday!E20+Saturday!E20+Sunday!E20","v":0},{"$f":"Weekday!F20+Saturday!F20+Sunday!F20","v":0},{"$f":"Weekday!G20+Saturday!G20+Sunday!G20","v":0},{"$f":"Weekday!H20+Saturday!H20+Sunday!H20","v":0},{"$f":"Weekday!I20+Saturday!I20+Sunday!I20","v":0},{"$f":"Weekday!J20+Saturday!J20+Sunday!J20","v":0},{"$f":"Weekday!K20+Saturday!K20+Sunday!K20","v":0},{"$f":"Weekday!L20+Saturday!L20+Sunday!L20","v":0},{"$f":"Weekday!M20+Saturday!M20+Sunday!M20","v":0},{"$f":"Weekday!N20+Saturday!N20+Sunday!N20","v":0},{"$f":"Weekday!O20+Saturday!O20+Sunday!O20","v":0},{"$f":"D20+E20+F20","v":0},{"$f":"G20+H20+I20","v":0},{"$f":"J20+K20+L20","v":0},{"$f":"M20+N20+O20","v":0},{"$f":"SUM(D20:O20)","v":0},{"$f":"U19+1","v":122}]
[{"$f":"A20+1","v":123},null,"Train Revenue Miles",{"$f":"Weekday!D21+Saturday!D21+Sunday!D21","v":0},{"$f":"Weekday!E21+Saturday!E21+Sunday!E21","v":0},{"$f":"Weekday!F21+Saturday!F21+Sunday!F21","v":0},{"$f":"Weekday!G21+Saturday!G21+Sunday!G21","v":0},{"$f":"Weekday!H21+Saturday!H21+Sunday!H21","v":0},{"$f":"Weekday!I21+Saturday!I21+Sunday!I21","v":0},{"$f":"Weekday!J21+Saturday!J21+Sunday!J21","v":0},{"$f":"Weekday!K21+Saturday!K21+Sunday!K21","v":0},{"$f":"Weekday!L21+Saturday!L21+Sunday!L21","v":0},{"$f":"Weekday!M21+Saturday!M21+Sunday!M21","v":0},{"$f":"Weekday!N21+Saturday!N21+Sunday!N21","v":0},{"$f":"Weekday!O21+Saturday!O21+Sunday!O21","v":0},{"$f":"D21+E21+F21","v":0},{"$f":"G21+H21+I21","v":0},{"$f":"J21+K21+L21","v":0},{"$f":"M21+N21+O21","v":0},{"$f":"SUM(D21:O21)","v":0},{"$f":"U20+1","v":123}]
[{"$f":"A21+1","v":124},null,"Train Revenue Hours",{"$f":"Weekday!D22+Saturday!D22+Sunday!D22","v":0},{"$f":"Weekday!E22+Saturday!E22+Sunday!E22","v":0},{"$f":"Weekday!F22+Saturday!F22+Sunday!F22","v":0},{"$f":"Weekday!G22+Saturday!G22+Sunday!G22","v":0},{"$f":"Weekday!H22+Saturday!H22+Sunday!H22","v":0},{"$f":"Weekday!I22+Saturday!I22+Sunday!I22","v":0},{"$f":"Weekday!J22+Saturday!J22+Sunday!J22","v":0},{"$f":"Weekday!K22+Saturday!K22+Sunday!K22","v":0},{"$f":"Weekday!L22+Saturday!L22+Sunday!L22","v":0},{"$f":"Weekday!M22+Saturday!M22+Sunday!M22","v":0},{"$f":"Weekday!N22+Saturday!N22+Sunday!N22","v":0},{"$f":"Weekday!O22+Saturday!O22+Sunday!O22","v":0},{"$f":"D22+E22+F22","v":0},{"$f":"G22+H22+I22","v":0},{"$f":"J22+K22+L22","v":0},{"$f":"M22+N22+O22","v":0},{"$f":"SUM(D22:O22)","v":0},{"$f":"U21+1","v":124}]
[null,"Street Car"]
[{"$f":"A22+1","v":125},null,"AM/PM Peak Period Vehicles",{"$f":"MAX(Weekday!D24,Saturday!D24,Sunday!D24)","v":0},{"$f":"MAX(Weekday!E24,Saturday!E24,Sunday!E24)","v":0},{"$f":"MAX(Weekday!F24,Saturday!F24,Sunday!F24)","v":0},{"$f":"MAX(Weekday!G24,Saturday!G24,Sunday!G24)","v":0},{"$f":"MAX(Weekday!H24,Saturday!H24,Sunday!H24)","v":0},{"$f":"MAX(Weekday!I24,Saturday!I24,Sunday!I24)","v":0},{"$f":"MAX(Weekday!J24,Saturday!J24,Sunday!J24)","v":0},{"$f":"MAX(Weekday!K24,Saturday!K24,Sunday!K24)","v":0},{"$f":"MAX(Weekday!L24,Saturday!L24,Sunday!L24)","v":0},{"$f":"MAX(Weekday!M24,Saturday!M24,Sunday!M24)","v":0},{"$f":"MAX(Weekday!N24,Saturday!N24,Sunday!N24)","v":0},{"$f":"MAX(Weekday!O24,Saturday!O24,Sunday!O24)","v":0},{"$f":"MAX(D24:F24)","v":0},{"$f":"MAX(G24:I24)","v":0},{"$f":"MAX(J24:L24)","v":0},{"$f":"MAX(M24:O24)","v":0},{"$f":"MAX(P24:S24)","v":0},{"$f":"U22+1","v":125}]
[{"$f":"A24+1","v":126},null,"Midday Vehicles",{"$f":"MAX(Weekday!D25,Saturday!D25,Sunday!D25)","v":0},{"$f":"MAX(Weekday!E25,Saturday!E25,Sunday!E25)","v":0},{"$f":"MAX(Weekday!F25,Saturday!F25,Sunday!F25)","v":0},{"$f":"MAX(Weekday!G25,Saturday!G25,Sunday!G25)","v":0},{"$f":"MAX(Weekday!H25,Saturday!H25,Sunday!H25)","v":0},{"$f":"MAX(Weekday!I25,Saturday!I25,Sunday!I25)","v":0},{"$f":"MAX(Weekday!J25,Saturday!J25,Sunday!J25)","v":0},{"$f":"MAX(Weekday!K25,Saturday!K25,Sunday!K25)","v":0},{"$f":"MAX(Weekday!L25,Saturday!L25,Sunday!L25)","v":0},{"$f":"MAX(Weekday!M25,Saturday!M25,Sunday!M25)","v":0},{"$f":"MAX(Weekday!N25,Saturday!N25,Sunday!N25)","v":0},{"$f":"MAX(Weekday!O25,Saturday!O25,Sunday!O25)","v":0},{"$f":"MAX(D25:F25)","v":0},{"$f":"MAX(G25:I25)","v":0},{"$f":"MAX(J25:L25)","v":0},{"$f":"MAX(M25:O25)","v":0},{"$f":"MAX(P25:S25)","v":0},{"$f":"U24+1","v":126}]
[{"$f":"A25+1","v":127},null,"Total Unlinked Passenger Trips",{"$f":"Weekday!D26+Saturday!D26+Sunday!D26","v":0},{"$f":"Weekday!E26+Saturday!E26+Sunday!E26","v":0},{"$f":"Weekday!F26+Saturday!F26+Sunday!F26","v":0},{"$f":"Weekday!G26+Saturday!G26+Sunday!G26","v":0},{"$f":"Weekday!H26+Saturday!H26+Sunday!H26","v":0},{"$f":"Weekday!I26+Saturday!I26+Sunday!I26","v":0},{"$f":"Weekday!J26+Saturday!J26+Sunday!J26","v":0},{"$f":"Weekday!K26+Saturday!K26+Sunday!K26","v":0},{"$f":"Weekday!L26+Saturday!L26+Sunday!L26","v":0},{"$f":"Weekday!M26+Saturday!M26+Sunday!M26","v":0},{"$f":"Weekday!N26+Saturday!N26+Sunday!N26","v":0},{"$f":"Weekday!O26+Saturday!O26+Sunday!O26","v":0},{"$f":"D26+E26+F26","v":0},{"$f":"G26+H26+I26","v":0},{"$f":"J26+K26+L26","v":0},{"$f":"M26+N26+O26","v":0},{"$f":"SUM(D26:O26)","v":0},{"$f":"U25+1","v":127}]
[{"$f":"A26+1","v":128},null,"Vehicle Revenue Miles",{"$f":"Weekday!D27+Saturday!D27+Sunday!D27","v":0},{"$f":"Weekday!E27+Saturday!E27+Sunday!E27","v":0},{"$f":"Weekday!F27+Saturday!F27+Sunday!F27","v":0},{"$f":"Weekday!G27+Saturday!G27+Sunday!G27","v":0},{"$f":"Weekday!H27+Saturday!H27+Sunday!H27","v":0},{"$f":"Weekday!I27+Saturday!I27+Sunday!I27","v":0},{"$f":"Weekday!J27+Saturday!J27+Sunday!J27","v":0},{"$f":"Weekday!K27+Saturday!K27+Sunday!K27","v":0},{"$f":"Weekday!L27+Saturday!L27+Sunday!L27","v":0},{"$f":"Weekday!M27+Saturday!M27+Sunday!M27","v":0},{"$f":"Weekday!N27+Saturday!N27+Sunday!N27","v":0},{"$f":"Weekday!O27+Saturday!O27+Sunday!O27","v":0},{"$f":"D27+E27+F27","v":0},{"$f":"G27+H27+I27","v":0},{"$f":"J27+K27+L27","v":0},{"$f":"M27+N27+O27","v":0},{"$f":"SUM(D27:O27)","v":0},{"$f":"U26+1","v":128}]
[{"$f":"A27+1","v":129},null,"Vehicle Revenue Hours",{"$f":"Weekday!D28+Saturday!D28+Sunday!D28","v":0},{"$f":"Weekday!E28+Saturday!E28+Sunday!E28","v":0},{"$f":"Weekday!F28+Saturday!F28+Sunday!F28","v":0},{"$f":"Weekday!G28+Saturday!G28+Sunday!G28","v":0},{"$f":"Weekday!H28+Saturday!H28+Sunday!H28","v":0},{"$f":"Weekday!I28+Saturday!I28+Sunday!I28","v":0},{"$f":"Weekday!J28+Saturday!J28+Sunday!J28","v":0},{"$f":"Weekday!K28+Saturday!K28+Sunday!K28","v":0},{"$f":"Weekday!L28+Saturday!L28+Sunday!L28","v":0},{"$f":"Weekday!M28+Saturday!M28+Sunday!M28","v":0},{"$f":"Weekday!N28+Saturday!N28+Sunday!N28","v":0},{"$f":"Weekday!O28+Saturday!O28+Sunday!O28","v":0},{"$f":"D28+E28+F28","v":0},{"$f":"G28+H28+I28","v":0},{"$f":"J28+K28+L28","v":0},{"$f":"M28+N28+O28","v":0},{"$f":"SUM(D28:O28)","v":0},{"$f":"U27+1","v":129}]
[null,"Vanpool"]
[{"$f":"A28+1","v":130},null,"AM/PM Peak Period Vehicles",{"$f":"MAX(Weekday!D30,Saturday!D30,Sunday!D30)","v":0},{"$f":"MAX(Weekday!E30,Saturday!E30,Sunday!E30)","v":0},{"$f":"MAX(Weekday!F30,Saturday!F30,Sunday!F30)","v":0},{"$f":"MAX(Weekday!G30,Saturday!G30,Sunday!G30)","v":0},{"$f":"MAX(Weekday!H30,Saturday!H30,Sunday!H30)","v":0},{"$f":"MAX(Weekday!I30,Saturday!I30,Sunday!I30)","v":0},{"$f":"MAX(Weekday!J30,Saturday!J30,Sunday!J30)","v":0},{"$f":"MAX(Weekday!K30,Saturday!K30,Sunday!K30)","v":0},{"$f":"MAX(Weekday!L30,Saturday!L30,Sunday!L30)","v":0},{"$f":"MAX(Weekday!M30,Saturday!M30,Sunday!M30)","v":0},{"$f":"MAX(Weekday!N30,Saturday!N30,Sunday!N30)","v":0},{"$f":"MAX(Weekday!O30,Saturday!O30,Sunday!O30)","v":0},{"$f":"MAX(D30:F30)","v":0},{"$f":"MAX(G30:I30)","v":0},{"$f":"MAX(J30:L30)","v":0},{"$f":"MAX(M30:O30)","v":0},{"$f":"MAX(P30:S30)","v":0},{"$f":"U28+1","v":130}]
[{"$f":"A30+1","v":131},null,"Midday Vehicles",{"$f":"MAX(Weekday!D31,Saturday!D31,Sunday!D31)","v":0},{"$f":"MAX(Weekday!E31,Saturday!E31,Sunday!E31)","v":0},{"$f":"MAX(Weekday!F31,Saturday!F31,Sunday!F31)","v":0},{"$f":"MAX(Weekday!G31,Saturday!G31,Sunday!G31)","v":0},{"$f":"MAX(Weekday!H31,Saturday!H31,Sunday!H31)","v":0},{"$f":"MAX(Weekday!I31,Saturday!I31,Sunday!I31)","v":0},{"$f":"MAX(Weekday!J31,Saturday!J31,Sunday!J31)","v":0},{"$f":"MAX(Weekday!K31,Saturday!K31,Sunday!K31)","v":0},{"$f":"MAX(Weekday!L31,Saturday!L31,Sunday!L31)","v":0},{"$f":"MAX(Weekday!M31,Saturday!M31,Sunday!M31)","v":0},{"$f":"MAX(Weekday!N31,Saturday!N31,Sunday!N31)","v":0},{"$f":"MAX(Weekday!O31,Saturday!O31,Sunday!O31)","v":0},{"$f":"MAX(D31:F31)","v":0},{"$f":"MAX(G31:I31)","v":0},{"$f":"MAX(J31:L31)","v":0},{"$f":"MAX(M31:O31)","v":0},{"$f":"MAX(P31:S31)","v":0},{"$f":"U30+1","v":131}]
[{"$f":"A31+1","v":132},null,"Total Unlinked Passenger Trips",{"$f":"Weekday!D32+Saturday!D32+Sunday!D32","v":0},{"$f":"Weekday!E32+Saturday!E32+Sunday!E32","v":0},{"$f":"Weekday!F32+Saturday!F32+Sunday!F32","v":0},{"$f":"Weekday!G32+Saturday!G32+Sunday!G32","v":0},{"$f":"Weekday!H32+Saturday!H32+Sunday!H32","v":0},{"$f":"Weekday!I32+Saturday!I32+Sunday!I32","v":0},{"$f":"Weekday!J32+Saturday!J32+Sunday!J32","v":0},{"$f":"Weekday!K32+Saturday!K32+Sunday!K32","v":0},{"$f":"Weekday!L32+Saturday!L32+Sunday!L32","v":0},{"$f":"Weekday!M32+Saturday!M32+Sunday!M32","v":0},{"$f":"Weekday!N32+Saturday!N32+Sunday!N32","v":0},{"$f":"Weekday!O32+Saturday!O32+Sunday!O32","v":0},{"$f":"D32+E32+F32","v":0},{"$f":"G32+H32+I32","v":0},{"$f":"J32+K32+L32","v":0},{"$f":"M32+N32+O32","v":0},{"$f":"SUM(D32:O32)","v":0},{"$f":"U31+1","v":132}]
[{"$f":"A32+1","v":133},null,"Vehicle Revenue Miles",{"$f":"Weekday!D33+Saturday!D33+Sunday!D33","v":0},{"$f":"Weekday!E33+Saturday!E33+Sunday!E33","v":0},{"$f":"Weekday!F33+Saturday!F33+Sunday!F33","v":0},{"$f":"Weekday!G33+Saturday!G33+Sunday!G33","v":0},{"$f":"Weekday!H33+Saturday!H33+Sunday!H33","v":0},{"$f":"Weekday!I33+Saturday!I33+Sunday!I33","v":0},{"$f":"Weekday!J33+Saturday!J33+Sunday!J33","v":0},{"$f":"Weekday!K33+Saturday!K33+Sunday!K33","v":0},{"$f":"Weekday!L33+Saturday!L33+Sunday!L33","v":0},{"$f":"Weekday!M33+Saturday!M33+Sunday!M33","v":0},{"$f":"Weekday!N33+Saturday!N33+Sunday!N33","v":0},{"$f":"Weekday!O33+Saturday!O33+Sunday!O33","v":0},{"$f":"D33+E33+F33","v":0},{"$f":"G33+H33+I33","v":0},{"$f":"J33+K33+L33","v":0},{"$f":"M33+N33+O33","v":0},{"$f":"SUM(D33:O33)","v":0},{"$f":"U32+1","v":133}]
[{"$f":"A33+1","v":134},null,"Vehicle Revenue Hours",{"$f":"Weekday!D34+Saturday!D34+Sunday!D34","v":0},{"$f":"Weekday!E34+Saturday!E34+Sunday!E34","v":0},{"$f":"Weekday!F34+Saturday!F34+Sunday!F34","v":0},{"$f":"Weekday!G34+Saturday!G34+Sunday!G34","v":0},{"$f":"Weekday!H34+Saturday!H34+Sunday!H34","v":0},{"$f":"Weekday!I34+Saturday!I34+Sunday!I34","v":0},{"$f":"Weekday!J34+Saturday!J34+Sunday!J34","v":0},{"$f":"Weekday!K34+Saturday!K34+Sunday!K34","v":0},{"$f":"Weekday!L34+Saturday!L34+Sunday!L34","v":0},{"$f":"Weekday!M34+Saturday!M34+Sunday!M34","v":0},{"$f":"Weekday!N34+Saturday!N34+Sunday!N34","v":0},{"$f":"Weekday!O34+Saturday!O34+Sunday!O34","v":0},{"$f":"D34+E34+F34","v":0},{"$f":"G34+H34+I34","v":0},{"$f":"J34+K34+L34","v":0},{"$f":"M34+N34+O34","v":0},{"$f":"SUM(D34:O34)","v":0},{"$f":"U33+1","v":134}]
[null,"Microtransit"]
[{"$f":"A34+1","v":135},null,"AM/PM Peak Period Vehicles",{"$f":"MAX(Weekday!D36,Saturday!D36,Sunday!D36)","v":0},{"$f":"MAX(Weekday!E36,Saturday!E36,Sunday!E36)","v":0},{"$f":"MAX(Weekday!F36,Saturday!F36,Sunday!F36)","v":0},{"$f":"MAX(Weekday!G36,Saturday!G36,Sunday!G36)","v":0},{"$f":"MAX(Weekday!H36,Saturday!H36,Sunday!H36)","v":0},{"$f":"MAX(Weekday!I36,Saturday!I36,Sunday!I36)","v":0},{"$f":"MAX(Weekday!J36,Saturday!J36,Sunday!J36)","v":0},{"$f":"MAX(Weekday!K36,Saturday!K36,Sunday!K36)","v":0},{"$f":"MAX(Weekday!L36,Saturday!L36,Sunday!L36)","v":0},{"$f":"MAX(Weekday!M36,Saturday!M36,Sunday!M36)","v":0},{"$f":"MAX(Weekday!N36,Saturday!N36,Sunday!N36)","v":0},{"$f":"MAX(Weekday!O36,Saturday!O36,Sunday!O36)","v":0},{"$f":"MAX(D36:F36)","v":0},{"$f":"MAX(G36:I36)","v":0},{"$f":"MAX(J36:L36)","v":0},{"$f":"MAX(M36:O36)","v":0},{"$f":"MAX(P36:S36)","v":0},{"$f":"U34+1","v":135}]
[{"$f":"A36+1","v":136},null,"Midday Vehicles",{"$f":"MAX(Weekday!D37,Saturday!D37,Sunday!D37)","v":0},{"$f":"MAX(Weekday!E37,Saturday!E37,Sunday!E37)","v":0},{"$f":"MAX(Weekday!F37,Saturday!F37,Sunday!F37)","v":0},{"$f":"MAX(Weekday!G37,Saturday!G37,Sunday!G37)","v":0},{"$f":"MAX(Weekday!H37,Saturday!H37,Sunday!H37)","v":0},{"$f":"MAX(Weekday!I37,Saturday!I37,Sunday!I37)","v":0},{"$f":"MAX(Weekday!J37,Saturday!J37,Sunday!J37)","v":0},{"$f":"MAX(Weekday!K37,Saturday!K37,Sunday!K37)","v":0},{"$f":"MAX(Weekday!L37,Saturday!L37,Sunday!L37)","v":0},{"$f":"MAX(Weekday!M37,Saturday!M37,Sunday!M37)","v":0},{"$f":"MAX(Weekday!N37,Saturday!N37,Sunday!N37)","v":0},{"$f":"MAX(Weekday!O37,Saturday!O37,Sunday!O37)","v":0},{"$f":"MAX(D37:F37)","v":0},{"$f":"MAX(G37:I37)","v":0},{"$f":"MAX(J37:L37)","v":0},{"$f":"MAX(M37:O37)","v":0},{"$f":"MAX(P37:S37)","v":0},{"$f":"U36+1","v":136}]
[{"$f":"A37+1","v":137},null,"Total Unlinked Passenger Trips",{"$f":"Weekday!D38+Saturday!D38+Sunday!D38","v":0},{"$f":"Weekday!E38+Saturday!E38+Sunday!E38","v":0},{"$f":"Weekday!F38+Saturday!F38+Sunday!F38","v":0},{"$f":"Weekday!G38+Saturday!G38+Sunday!G38","v":0},{"$f":"Weekday!H38+Saturday!H38+Sunday!H38","v":0},{"$f":"Weekday!I38+Saturday!I38+Sunday!I38","v":0},{"$f":"Weekday!J38+Saturday!J38+Sunday!J38","v":0},{"$f":"Weekday!K38+Saturday!K38+Sunday!K38","v":0},{"$f":"Weekday!L38+Saturday!L38+Sunday!L38","v":0},{"$f":"Weekday!M38+Saturday!M38+Sunday!M38","v":0},{"$f":"Weekday!N38+Saturday!N38+Sunday!N38","v":0},{"$f":"Weekday!O38+Saturday!O38+Sunday!O38","v":0},{"$f":"D38+E38+F38","v":0},{"$f":"G38+H38+I38","v":0},{"$f":"J38+K38+L38","v":0},{"$f":"M38+N38+O38","v":0},{"$f":"SUM(D38:O38)","v":0},{"$f":"U37+1","v":137}]
[{"$f":"A38+1","v":138},null,"Vehicle Revenue Miles",{"$f":"Weekday!D39+Saturday!D39+Sunday!D39","v":0},{"$f":"Weekday!E39+Saturday!E39+Sunday!E39","v":0},{"$f":"Weekday!F39+Saturday!F39+Sunday!F39","v":0},{"$f":"Weekday!G39+Saturday!G39+Sunday!G39","v":0},{"$f":"Weekday!H39+Saturday!H39+Sunday!H39","v":0},{"$f":"Weekday!I39+Saturday!I39+Sunday!I39","v":0},{"$f":"Weekday!J39+Saturday!J39+Sunday!J39","v":0},{"$f":"Weekday!K39+Saturday!K39+Sunday!K39","v":0},{"$f":"Weekday!L39+Saturday!L39+Sunday!L39","v":0},{"$f":"Weekday!M39+Saturday!M39+Sunday!M39","v":0},{"$f":"Weekday!N39+Saturday!N39+Sunday!N39","v":0},{"$f":"Weekday!O39+Saturday!O39+Sunday!O39","v":0},{"$f":"D39+E39+F39","v":0},{"$f":"G39+H39+I39","v":0},{"$f":"J39+K39+L39","v":0},{"$f":"M39+N39+O39","v":0},{"$f":"SUM(D39:O39)","v":0},{"$f":"U38+1","v":138}]
[{"$f":"A39+1","v":139},null,"Vehicle Revenue Hours",{"$f":"Weekday!D40+Saturday!D40+Sunday!D40","v":0},{"$f":"Weekday!E40+Saturday!E40+Sunday!E40","v":0},{"$f":"Weekday!F40+Saturday!F40+Sunday!F40","v":0},{"$f":"Weekday!G40+Saturday!G40+Sunday!G40","v":0},{"$f":"Weekday!H40+Saturday!H40+Sunday!H40","v":0},{"$f":"Weekday!I40+Saturday!I40+Sunday!I40","v":0},{"$f":"Weekday!J40+Saturday!J40+Sunday!J40","v":0},{"$f":"Weekday!K40+Saturday!K40+Sunday!K40","v":0},{"$f":"Weekday!L40+Saturday!L40+Sunday!L40","v":0},{"$f":"Weekday!M40+Saturday!M40+Sunday!M40","v":0},{"$f":"Weekday!N40+Saturday!N40+Sunday!N40","v":0},{"$f":"Weekday!O40+Saturday!O40+Sunday!O40","v":0},{"$f":"D40+E40+F40","v":0},{"$f":"G40+H40+I40","v":0},{"$f":"J40+K40+L40","v":0},{"$f":"M40+N40+O40","v":0},{"$f":"SUM(D40:O40)","v":0},{"$f":"U39+1","v":139}]
[null,null,null,"A","B","C","D","E","F","G","H","I","J","K","L"]

{"sheet":"Dashboard","index":6,"n_rows":88,"n_cols":99,"rows_kept":88,"cut":false,"hidden":true,"merged":[[2,0,29,0],[32,0,48,0],[52,0,79,0],[83,0,110,0]]}
[null,"Transit Performace Dashboard"]
[]
["Passenger Trips By Month"]
[]
[]
[]
[]
[]
[]
[]
[]
[]
[]
[]
[]
[]
[]
[]
[]
[]
[]
[]
[]
[]
[]
[]
[]
[]
[]
[]
[]
[]
["Revenue per Hour"]
[]
[null,null,"Fixed Route Passengers per Operating Day",null,null,null,null,null,null,null,null,null,null,null,null,null,null,null,null,null,"Dial-A-Ride Passnegers per Operating Day",null,null,null,null,null,null,null,null,null,null,null,null,null,null,null,null,"Transit Passengers Per Operating Day (Weekly) ",null,null,null,null,null,null,null,null,null,null,null,null,null,null,"Street car Passengers Per Operating Day",null,null,null,null,null,null,null,null,null,null,null,null,null,null,null,null,"Van Pool Passengers Per Operating Day",null,null,null,null,null,null,null,null,null,null,null,null,null,null,null,null,"Street car Passengers Per Operating Day"]
[null,null,"Month","July","August","September","October","November","December","January","February","March","April","May","June",null,null,null,null,null,"Month","July","August","September","October","November","December","January","February","March","April","May","June",null,null,null,null,"Month","July","August","September","October","November","December","January","February","March","April","May","June",null,null,"Month","July","August","September","October","November","December","January","February","March","April","May","June",null,null,null,null,"Month","July","August","September","October","November","December","January","February","March","April","May","June",null,null,null,null,"Month","July","August","September","October","November","December","January","February","March","April","May","June"]
[null,null,"Weekday",{"$f":"Weekday!D8/Weekday!D4","v":{"$error":"#DIV/0!"}},{"$f":"Weekday!E8/Weekday!E4","v":{"$error":"#DIV/0!"}},{"$f":"Weekday!F8/Weekday!F4","v":{"$error":"#DIV/0!"}},{"$f":"Weekday!G8/Weekday!G4","v":{"$error":"#DIV/0!"}},{"$f":"Weekday!H8/Weekday!H4","v":{"$error":"#DIV/0!"}},{"$f":"Weekday!I8/Weekday!I4","v":{"$error":"#DIV/0!"}},{"$f":"Weekday!J8/Weekday!J4","v":{"$error":"#DIV/0!"}},{"$f":"Weekday!K8/Weekday!K4","v":{"$error":"#DIV/0!"}},{"$f":"Weekday!L8/Weekday!L4","v":{"$error":"#DIV/0!"}},{"$f":"Weekday!M8/Weekday!M4","v":{"$error":"#DIV/0!"}},{"$f":"Weekday!N8/Weekday!N4","v":{"$error":"#DIV/0!"}},{"$f":"Weekday!O8/Weekday!O4","v":{"$error":"#DIV/0!"}},null,null,null,null,null,"Weekday",{"$f":"Weekday!D14/Weekday!D4","v":{"$error":"#DIV/0!"}},{"$f":"Weekday!E14/Weekday!E4","v":{"$error":"#DIV/0!"}},{"$f":"Weekday!F14/Weekday!F4","v":{"$error":"#DIV/0!"}},{"$f":"Weekday!G14/Weekday!G4","v":{"$error":"#DIV/0!"}},{"$f":"Weekday!H14/Weekday!H4","v":{"$error":"#DIV/0!"}},{"$f":"Weekday!I14/Weekday!I4","v":{"$error":"#DIV/0!"}},{"$f":"Weekday!J14/Weekday!J4","v":{"$error":"#DIV/0!"}},{"$f":"Weekday!K14/Weekday!K4","v":{"$error":"#DIV/0!"}},{"$f":"Weekday!L14/Weekday!L4","v":{"$error":"#DIV/0!"}},{"$f":"Weekday!M14/Weekday!M4","v":{"$error":"#DIV/0!"}},{"$f":"Weekday!N14/Weekday!N4","v":{"$error":"#DIV/0!"}},{"$f":"Weekday!O14/Weekday!O4","v":{"$error":"#DIV/0!"}},null,null,null,null,"Weekday",{"$f":"Weekday!D20/Weekday!D4","v":{"$error":"#DIV/0!"}},{"$f":"Weekday!E20/Weekday!E4","v":{"$error":"#DIV/0!"}},{"$f":"Weekday!F20/Weekday!F4","v":{"$error":"#DIV/0!"}},{"$f":"Weekday!G20/Weekday!G4","v":{"$error":"#DIV/0!"}},{"$f":"Weekday!H20/Weekday!H4","v":{"$error":"#DIV/0!"}},{"$f":"Weekday!I20/Weekday!I4","v":{"$error":"#DIV/0!"}},{"$f":"Weekday!J20/Weekday!J4","v":{"$error":"#DIV/0!"}},{"$f":"Weekday!K20/Weekday!K4","v":{"$error":"#DIV/0!"}},{"$f":"Weekday!L20/Weekday!L4","v":{"$error":"#DIV/0!"}},{"$f":"Weekday!M20/Weekday!M4","v":{"$error":"#DIV/0!"}},{"$f":"Weekday!N20/Weekday!N4","v":{"$error":"#DIV/0!"}},{"$f":"Weekday!O20/Weekday!O4","v":{"$error":"#DIV/0!"}},null,null,"Weekday",{"$f":"Weekday!D26/Weekday!D4","v":{"$error":"#DIV/0!"}},{"$f":"Weekday!E26/Weekday!E4","v":{"$error":"#DIV/0!"}},{"$f":"Weekday!F26/Weekday!F4","v":{"$error":"#DIV/0!"}},{"$f":"Weekday!G26/Weekday!G4","v":{"$error":"#DIV/0!"}},{"$f":"Weekday!H26/Weekday!H4","v":{"$error":"#DIV/0!"}},{"$f":"Weekday!I26/Weekday!I4","v":{"$error":"#DIV/0!"}},{"$f":"Weekday!J26/Weekday!J4","v":{"$error":"#DIV/0!"}},{"$f":"Weekday!K26/Weekday!K4","v":{"$error":"#DIV/0!"}},{"$f":"Weekday!L26/Weekday!L4","v":{"$error":"#DIV/0!"}},{"$f":"Weekday!M26/Weekday!M4","v":{"$error":"#DIV/0!"}},{"$f":"Weekday!N26/Weekday!N4","v":{"$error":"#DIV/0!"}},{"$f":"Weekday!O26/Weekday!O4","v":{"$error":"#DIV/0!"}},null,null,null,null,"Weekday",{"$f":"Weekday!D32/Weekday!D4","v":{"$error":"#DIV/0!"}},{"$f":"Weekday!E32/Weekday!E4","v":{"$error":"#DIV/0!"}},{"$f":"Weekday!F32/Weekday!F4","v":{"$error":"#DIV/0!"}},{"$f":"Weekday!G32/Weekday!G4","v":{"$error":"#DIV/0!"}},{"$f":"Weekday!H32/Weekday!H4","v":{"$error":"#DIV/0!"}},{"$f":"Weekday!I32/Weekday!I4","v":{"$error":"#DIV/0!"}},{"$f":"Weekday!J32/Weekday!J4","v":{"$error":"#DIV/0!"}},{"$f":"Weekday!K32/Weekday!K4","v":{"$error":"#DIV/0!"}},{"$f":"Weekday!L32/Weekday!L4","v":{"$error":"#DIV/0!"}},{"$f":"Weekday!M32/Weekday!M4","v":{"$error":"#DIV/0!"}},{"$f":"Weekday!N32/Weekday!N4","v":{"$error":"#DIV/0!"}},{"$f":"Weekday!O32/Weekday!O4","v":{"$error":"#DIV/0!"}},null,null,null,null,"Weekday",{"$f":"Weekday!D38/Weekday!D4","v":{"$error":"#DIV/0!"}},{"$f":"Weekday!E38/Weekday!E4","v":{"$error":"#DIV/0!"}},{"$f":"Weekday!F38/Weekday!F4","v":{"$error":"#DIV/0!"}},{"$f":"Weekday!G38/Weekday!G4","v":{"$error":"#DIV/0!"}},{"$f":"Weekday!H38/Weekday!H4","v":{"$error":"#DIV/0!"}},{"$f":"Weekday!I38/Weekday!I4","v":{"$error":"#DIV/0!"}},{"$f":"Weekday!J38/Weekday!J4","v":{"$error":"#DIV/0!"}},{"$f":"Weekday!K38/Weekday!K4","v":{"$error":"#DIV/0!"}},{"$f":"Weekday!L38/Weekday!L4","v":{"$error":"#DIV/0!"}},{"$f":"Weekday!M38/Weekday!M4","v":{"$error":"#DIV/0!"}},{"$f":"Weekday!N38/Weekday!N4","v":{"$error":"#DIV/0!"}},{"$f":"Weekday!O38/Weekday!O4","v":{"$error":"#DIV/0!"}}]
[null,null,"Saturday",{"$f":"Saturday!D8/Saturday!D4","v":{"$error":"#DIV/0!"}},{"$f":"Saturday!E8/Saturday!E4","v":{"$error":"#DIV/0!"}},{"$f":"Saturday!F8/Saturday!F4","v":{"$error":"#DIV/0!"}},{"$f":"Saturday!G8/Saturday!G4","v":{"$error":"#DIV/0!"}},{"$f":"Saturday!H8/Saturday!H4","v":{"$error":"#DIV/0!"}},{"$f":"Saturday!I8/Saturday!I4","v":{"$error":"#DIV/0!"}},{"$f":"Saturday!J8/Saturday!J4","v":{"$error":"#DIV/0!"}},{"$f":"Saturday!K8/Saturday!K4","v":{"$error":"#DIV/0!"}},{"$f":"Saturday!L8/Saturday!L4","v":{"$error":"#DIV/0!"}},{"$f":"Saturday!M8/Saturday!M4","v":{"$error":"#DIV/0!"}},{"$f":"Saturday!N8/Saturday!N4","v":{"$error":"#DIV/0!"}},{"$f":"Saturday!O8/Saturday!O4","v":{"$error":"#DIV/0!"}},null,null,null,null,null,"Saturday",{"$f":"Saturday!D14/Saturday!D4","v":{"$error":"#DIV/0!"}},{"$f":"Saturday!E14/Saturday!E4","v":{"$error":"#DIV/0!"}},{"$f":"Saturday!F14/Saturday!F4","v":{"$error":"#DIV/0!"}},{"$f":"Saturday!G14/Saturday!G4","v":{"$error":"#DIV/0!"}},{"$f":"Saturday!H14/Saturday!H4","v":{"$error":"#DIV/0!"}},{"$f":"Saturday!I14/Saturday!I4","v":{"$error":"#DIV/0!"}},{"$f":"Saturday!J14/Saturday!J4","v":{"$error":"#DIV/0!"}},{"$f":"Saturday!K14/Saturday!K4","v":{"$error":"#DIV/0!"}},{"$f":"Saturday!L14/Saturday!L4","v":{"$error":"#DIV/0!"}},{"$f":"Saturday!M14/Saturday!M4","v":{"$error":"#DIV/0!"}},{"$f":"Saturday!N14/Saturday!N4","v":{"$error":"#DIV/0!"}},{"$f":"Saturday!O14/Saturday!O4","v":{"$error":"#DIV/0!"}},null,null,null,null,"Saturday",{"$f":"Saturday!D20/Saturday!D4","v":{"$error":"#DIV/0!"}},{"$f":"Saturday!E20/Saturday!E4","v":{"$error":"#DIV/0!"}},{"$f":"Saturday!F20/Saturday!F4","v":{"$error":"#DIV/0!"}},{"$f":"Saturday!G20/Saturday!G4","v":{"$error":"#DIV/0!"}},{"$f":"Saturday!H20/Saturday!H4","v":{"$error":"#DIV/0!"}},{"$f":"Saturday!I20/Saturday!I4","v":{"$error":"#DIV/0!"}},{"$f":"Saturday!J20/Saturday!J4","v":{"$error":"#DIV/0!"}},{"$f":"Saturday!K20/Saturday!K4","v":{"$error":"#DIV/0!"}},{"$f":"Saturday!L20/Saturday!L4","v":{"$error":"#DIV/0!"}},{"$f":"Saturday!M20/Saturday!M4","v":{"$error":"#DIV/0!"}},{"$f":"Saturday!N20/Saturday!N4","v":{"$error":"#DIV/0!"}},{"$f":"Saturday!O20/Saturday!O4","v":{"$error":"#DIV/0!"}},null,null,"Saturday",{"$f":"Saturday!D26/Saturday!D4","v":{"$error":"#DIV/0!"}},{"$f":"Saturday!E26/Saturday!E4","v":{"$error":"#DIV/0!"}},{"$f":"Saturday!F26/Saturday!F4","v":{"$error":"#DIV/0!"}},{"$f":"Saturday!G26/Saturday!G4","v":{"$error":"#DIV/0!"}},{"$f":"Saturday!H26/Saturday!H4","v":{"$error":"#DIV/0!"}},{"$f":"Saturday!I26/Saturday!I4","v":{"$error":"#DIV/0!"}},{"$f":"Saturday!J26/Saturday!J4","v":{"$error":"#DIV/0!"}},{"$f":"Saturday!K26/Saturday!K4","v":{"$error":"#DIV/0!"}},{"$f":"Saturday!L26/Saturday!L4","v":{"$error":"#DIV/0!"}},{"$f":"Saturday!M26/Saturday!M4","v":{"$error":"#DIV/0!"}},{"$f":"Saturday!N26/Saturday!N4","v":{"$error":"#DIV/0!"}},{"$f":"Saturday!O26/Saturday!O4","v":{"$error":"#DIV/0!"}},null,null,null,null,"Saturday",{"$f":"Saturday!D32/Saturday!D4","v":{"$error":"#DIV/0!"}},{"$f":"Saturday!E32/Saturday!E4","v":{"$error":"#DIV/0!"}},{"$f":"Saturday!F32/Saturday!F4","v":{"$error":"#DIV/0!"}},{"$f":"Saturday!G32/Saturday!G4","v":{"$error":"#DIV/0!"}},{"$f":"Saturday!H32/Saturday!H4","v":{"$error":"#DIV/0!"}},{"$f":"Saturday!I32/Saturday!I4","v":{"$error":"#DIV/0!"}},{"$f":"Saturday!J32/Saturday!J4","v":{"$error":"#DIV/0!"}},{"$f":"Saturday!K32/Saturday!K4","v":{"$error":"#DIV/0!"}},{"$f":"Saturday!L32/Saturday!L4","v":{"$error":"#DIV/0!"}},{"$f":"Saturday!M32/Saturday!M4","v":{"$error":"#DIV/0!"}},{"$f":"Saturday!N32/Saturday!N4","v":{"$error":"#DIV/0!"}},{"$f":"Saturday!O32/Saturday!O4","v":{"$error":"#DIV/0!"}},null,null,null,null,"Saturday",{"$f":"Saturday!D38/Saturday!D4","v":{"$error":"#DIV/0!"}},{"$f":"Saturday!E38/Saturday!E4","v":{"$error":"#DIV/0!"}},{"$f":"Saturday!F38/Saturday!F4","v":{"$error":"#DIV/0!"}},{"$f":"Saturday!G38/Saturday!G4","v":{"$error":"#DIV/0!"}},{"$f":"Saturday!H38/Saturday!H4","v":{"$error":"#DIV/0!"}},{"$f":"Saturday!I38/Saturday!I4","v":{"$error":"#DIV/0!"}},{"$f":"Saturday!J38/Saturday!J4","v":{"$error":"#DIV/0!"}},{"$f":"Saturday!K38/Saturday!K4","v":{"$error":"#DIV/0!"}},{"$f":"Saturday!L38/Saturday!L4","v":{"$error":"#DIV/0!"}},{"$f":"Saturday!M38/Saturday!M4","v":{"$error":"#DIV/0!"}},{"$f":"Saturday!N38/Saturday!N4","v":{"$error":"#DIV/0!"}},{"$f":"Saturday!O38/Saturday!O4","v":{"$error":"#DIV/0!"}}]
[null,null,"Sunday",{"$f":"Sunday!D8/Sunday!D4","v":{"$error":"#DIV/0!"}},{"$f":"Sunday!E8/Sunday!E4","v":{"$error":"#DIV/0!"}},{"$f":"Sunday!F8/Sunday!F4","v":{"$error":"#DIV/0!"}},{"$f":"Sunday!G8/Sunday!G4","v":{"$error":"#DIV/0!"}},{"$f":"Sunday!H8/Sunday!H4","v":{"$error":"#DIV/0!"}},{"$f":"Sunday!I8/Sunday!I4","v":{"$error":"#DIV/0!"}},{"$f":"Sunday!J8/Sunday!J4","v":{"$error":"#DIV/0!"}},{"$f":"Sunday!K8/Sunday!K4","v":{"$error":"#DIV/0!"}},{"$f":"Sunday!L8/Sunday!L4","v":{"$error":"#DIV/0!"}},{"$f":"Sunday!M8/Sunday!M4","v":{"$error":"#DIV/0!"}},{"$f":"Sunday!N8/Sunday!N4","v":{"$error":"#DIV/0!"}},{"$f":"Sunday!O8/Sunday!O4","v":{"$error":"#DIV/0!"}},null,null,null,null,null,"Sunday",{"$f":"Sunday!D14/Sunday!D4","v":{"$error":"#DIV/0!"}},{"$f":"Sunday!E14/Sunday!E4","v":{"$error":"#DIV/0!"}},{"$f":"Sunday!F14/Sunday!F4","v":{"$error":"#DIV/0!"}},{"$f":"Sunday!G14/Sunday!G4","v":{"$error":"#DIV/0!"}},{"$f":"Sunday!H14/Sunday!H4","v":{"$error":"#DIV/0!"}},{"$f":"Sunday!I14/Sunday!I4","v":{"$error":"#DIV/0!"}},{"$f":"Sunday!J14/Sunday!J4","v":{"$error":"#DIV/0!"}},{"$f":"Sunday!K14/Sunday!K4","v":{"$error":"#DIV/0!"}},{"$f":"Sunday!L14/Sunday!L4","v":{"$error":"#DIV/0!"}},{"$f":"Sunday!M14/Sunday!M4","v":{"$error":"#DIV/0!"}},{"$f":"Sunday!N14/Sunday!N4","v":{"$error":"#DIV/0!"}},{"$f":"Sunday!O14/Sunday!O4","v":{"$error":"#DIV/0!"}},null,null,null,null,"Sunday",{"$f":"Sunday!D20/Sunday!D4","v":{"$error":"#DIV/0!"}},{"$f":"Sunday!E20/Sunday!E4","v":{"$error":"#DIV/0!"}},{"$f":"Sunday!F20/Sunday!F4","v":{"$error":"#DIV/0!"}},{"$f":"Sunday!G20/Sunday!G4","v":{"$error":"#DIV/0!"}},{"$f":"Sunday!H20/Sunday!H4","v":{"$error":"#DIV/0!"}},{"$f":"Sunday!I20/Sunday!I4","v":{"$error":"#DIV/0!"}},{"$f":"Sunday!J20/Sunday!J4","v":{"$error":"#DIV/0!"}},{"$f":"Sunday!K20/Sunday!K4","v":{"$error":"#DIV/0!"}},{"$f":"Sunday!L20/Sunday!L4","v":{"$error":"#DIV/0!"}},{"$f":"Sunday!M20/Sunday!M4","v":{"$error":"#DIV/0!"}},{"$f":"Sunday!N20/Sunday!N4","v":{"$error":"#DIV/0!"}},{"$f":"Sunday!O20/Sunday!O4","v":{"$error":"#DIV/0!"}},null,null,"Sunday",{"$f":"Sunday!D26/Sunday!D4","v":{"$error":"#DIV/0!"}},{"$f":"Sunday!E26/Sunday!E4","v":{"$error":"#DIV/0!"}},{"$f":"Sunday!F26/Sunday!F4","v":{"$error":"#DIV/0!"}},{"$f":"Sunday!G26/Sunday!G4","v":{"$error":"#DIV/0!"}},{"$f":"Sunday!H26/Sunday!H4","v":{"$error":"#DIV/0!"}},{"$f":"Sunday!I26/Sunday!I4","v":{"$error":"#DIV/0!"}},{"$f":"Sunday!J26/Sunday!J4","v":{"$error":"#DIV/0!"}},{"$f":"Sunday!K26/Sunday!K4","v":{"$error":"#DIV/0!"}},{"$f":"Sunday!L26/Sunday!L4","v":{"$error":"#DIV/0!"}},{"$f":"Sunday!M26/Sunday!M4","v":{"$error":"#DIV/0!"}},{"$f":"Sunday!N26/Sunday!N4","v":{"$error":"#DIV/0!"}},{"$f":"Sunday!O26/Sunday!O4","v":{"$error":"#DIV/0!"}},null,null,null,null,"Sunday",{"$f":"Sunday!D32/Sunday!D4","v":{"$error":"#DIV/0!"}},{"$f":"Sunday!E32/Sunday!E4","v":{"$error":"#DIV/0!"}},{"$f":"Sunday!F32/Sunday!F4","v":{"$error":"#DIV/0!"}},{"$f":"Sunday!G32/Sunday!G4","v":{"$error":"#DIV/0!"}},{"$f":"Sunday!H32/Sunday!H4","v":{"$error":"#DIV/0!"}},{"$f":"Sunday!I32/Sunday!I4","v":{"$error":"#DIV/0!"}},{"$f":"Sunday!J32/Sunday!J4","v":{"$error":"#DIV/0!"}},{"$f":"Sunday!K32/Sunday!K4","v":{"$error":"#DIV/0!"}},{"$f":"Sunday!L32/Sunday!L4","v":{"$error":"#DIV/0!"}},{"$f":"Sunday!M32/Sunday!M4","v":{"$error":"#DIV/0!"}},{"$f":"Sunday!N32/Sunday!N4","v":{"$error":"#DIV/0!"}},{"$f":"Sunday!O32/Sunday!O4","v":{"$error":"#DIV/0!"}},null,null,null,null,"Sunday",{"$f":"Sunday!D38/Sunday!D4","v":{"$error":"#DIV/0!"}},{"$f":"Sunday!E38/Sunday!E4","v":{"$error":"#DIV/0!"}},{"$f":"Sunday!F38/Sunday!F4","v":{"$error":"#DIV/0!"}},{"$f":"Sunday!G38/Sunday!G4","v":{"$error":"#DIV/0!"}},{"$f":"Sunday!H38/Sunday!H4","v":{"$error":"#DIV/0!"}},{"$f":"Sunday!I38/Sunday!I4","v":{"$error":"#DIV/0!"}},{"$f":"Sunday!J38/Sunday!J4","v":{"$error":"#DIV/0!"}},{"$f":"Sunday!K38/Sunday!K4","v":{"$error":"#DIV/0!"}},{"$f":"Sunday!L38/Sunday!L4","v":{"$error":"#DIV/0!"}},{"$f":"Sunday!M38/Sunday!M4","v":{"$error":"#DIV/0!"}},{"$f":"Sunday!N38/Sunday!N4","v":{"$error":"#DIV/0!"}},{"$f":"Sunday!O38/Sunday!O4","v":{"$error":"#DIV/0!"}}]
[]
[]
[]
[]
[]
[]
[]
[]
[]
[]
[]
[]
[]
["Passengers per Operating Day "]
[]
[]
[]
[]
[]
[]
[null,null,"Fixed Route Pass/Hour",null,null,null,null,null,null,null,null,null,null,null,null,null,null,null,null,null,"Dial-A-Ride Pass/Hour",null,null,null,null,null,null,null,null,null,null,null,null,null,null,null,null,"Light Rail Pass/Hour",null,null,null,null,null,null,null,null,null,null,null,null,null,null,"Street Car Pass/Hour",null,null,null,null,null,null,null,null,null,null,null,null,null,null,null,null,"Van Pool Pass/Hour",null,null,null,null,null,null,null,null,null,null,null,null,null,null,null,null,"Street Car Pass/Hour"]
[null,null,"Month","July","August","September","October","November","December","January","February","March","April","May","June",null,null,null,null,null,"Month","July","August","September","October","November","December","January","February","March","April","May","June",null,null,null,null,"Month","July","August","September","October","November","December","January","February","March","April","May","June",null,null,"Month","July","August","September","October","November","December","January","February","March","April","May","June",null,null,null,null,"Month","July","August","September","October","November","December","January","February","March","April","May","June",null,null,null,null,"Month","July","August","September","October","November","December","January","February","March","April","May","June"]
[null,null,"Pass",{"$f":"'Weekly Totals'!D8","v":0},{"$f":"'Weekly Totals'!E8","v":0},{"$f":"'Weekly Totals'!F8","v":0},{"$f":"'Weekly Totals'!G8","v":0},{"$f":"'Weekly Totals'!H8","v":0},{"$f":"'Weekly Totals'!I8","v":0},{"$f":"'Weekly Totals'!J8","v":0},{"$f":"'Weekly Totals'!K8","v":0},{"$f":"'Weekly Totals'!L8","v":0},{"$f":"'Weekly Totals'!M8","v":0},{"$f":"'Weekly Totals'!N8","v":0},{"$f":"'Weekly Totals'!O8","v":0},null,null,null,null,null,"Pass",{"$f":"'Weekly Totals'!D14","v":0},{"$f":"'Weekly Totals'!E14","v":0},{"$f":"'Weekly Totals'!F14","v":0},{"$f":"'Weekly Totals'!G14","v":0},{"$f":"'Weekly Totals'!H14","v":0},{"$f":"'Weekly Totals'!I14","v":0},{"$f":"'Weekly Totals'!J14","v":0},{"$f":"'Weekly Totals'!K14","v":0},{"$f":"'Weekly Totals'!L14","v":0},{"$f":"'Weekly Totals'!M14","v":0},{"$f":"'Weekly Totals'!N14","v":0},{"$f":"'Weekly Totals'!O14","v":0},null,null,null,null,"Pass",{"$f":"'Weekly Totals'!D20","v":0},{"$f":"'Weekly Totals'!E20","v":0},{"$f":"'Weekly Totals'!F20","v":0},{"$f":"'Weekly Totals'!G20","v":0},{"$f":"'Weekly Totals'!H20","v":0},{"$f":"'Weekly Totals'!I20","v":0},{"$f":"'Weekly Totals'!J20","v":0},{"$f":"'Weekly Totals'!K20","v":0},{"$f":"'Weekly Totals'!L20","v":0},{"$f":"'Weekly Totals'!M20","v":0},{"$f":"'Weekly Totals'!N20","v":0},{"$f":"'Weekly Totals'!O20","v":0},null,null,"Pass",{"$f":"'Weekly Totals'!D26","v":0},{"$f":"'Weekly Totals'!E26","v":0},{"$f":"'Weekly Totals'!F26","v":0},{"$f":"'Weekly Totals'!G26","v":0},{"$f":"'Weekly Totals'!H26","v":0},{"$f":"'Weekly Totals'!I26","v":0},{"$f":"'Weekly Totals'!J26","v":0},{"$f":"'Weekly Totals'!K26","v":0},{"$f":"'Weekly Totals'!L26","v":0},{"$f":"'Weekly Totals'!M26","v":0},{"$f":"'Weekly Totals'!N26","v":0},{"$f":"'Weekly Totals'!O26","v":0},null,null,null,null,"Pass",{"$f":"'Weekly Totals'!D32","v":0},{"$f":"'Weekly Totals'!E32","v":0},{"$f":"'Weekly Totals'!F32","v":0},{"$f":"'Weekly Totals'!G32","v":0},{"$f":"'Weekly Totals'!H32","v":0},{"$f":"'Weekly Totals'!I32","v":0},{"$f":"'Weekly Totals'!J32","v":0},{"$f":"'Weekly Totals'!K32","v":0},{"$f":"'Weekly Totals'!L32","v":0},{"$f":"'Weekly Totals'!M32","v":0},{"$f":"'Weekly Totals'!N32","v":0},{"$f":"'Weekly Totals'!O32","v":0},null,null,null,null,"Pass",{"$f":"'Weekly Totals'!D38","v":0},{"$f":"'Weekly Totals'!E38","v":0},{"$f":"'Weekly Totals'!F38","v":0},{"$f":"'Weekly Totals'!G38","v":0},{"$f":"'Weekly Totals'!H38","v":0},{"$f":"'Weekly Totals'!I38","v":0},{"$f":"'Weekly Totals'!J38","v":0},{"$f":"'Weekly Totals'!K38","v":0},{"$f":"'Weekly Totals'!L38","v":0},{"$f":"'Weekly Totals'!M38","v":0},{"$f":"'Weekly Totals'!N38","v":0},{"$f":"'Weekly Totals'!O38","v":0}]
[null,null,"Hour",{"$f":"'Weekly Totals'!D10","v":0},{"$f":"'Weekly Totals'!E10","v":0},{"$f":"'Weekly Totals'!F10","v":0},{"$f":"'Weekly Totals'!G10","v":0},{"$f":"'Weekly Totals'!H10","v":0},{"$f":"'Weekly Totals'!I10","v":0},{"$f":"'Weekly Totals'!J10","v":0},{"$f":"'Weekly Totals'!K10","v":0},{"$f":"'Weekly Totals'!L10","v":0},{"$f":"'Weekly Totals'!M10","v":0},{"$f":"'Weekly Totals'!N10","v":0},{"$f":"'Weekly Totals'!O10","v":0},null,null,null,null,null,"Hour",{"$f":"'Weekly Totals'!D16","v":0},{"$f":"'Weekly Totals'!E16","v":0},{"$f":"'Weekly Totals'!F16","v":0},{"$f":"'Weekly Totals'!G16","v":0},{"$f":"'Weekly Totals'!H16","v":0},{"$f":"'Weekly Totals'!I16","v":0},{"$f":"'Weekly Totals'!J16","v":0},{"$f":"'Weekly Totals'!K16","v":0},{"$f":"'Weekly Totals'!L16","v":0},{"$f":"'Weekly Totals'!M16","v":0},{"$f":"'Weekly Totals'!N16","v":0},{"$f":"'Weekly Totals'!O16","v":0},null,null,null,null,"Hour ",{"$f":"'Weekly Totals'!D22","v":0},{"$f":"'Weekly Totals'!E22","v":0},{"$f":"'Weekly Totals'!F22","v":0},{"$f":"'Weekly Totals'!G22","v":0},{"$f":"'Weekly Totals'!H22","v":0},{"$f":"'Weekly Totals'!I22","v":0},{"$f":"'Weekly Totals'!J22","v":0},{"$f":"'Weekly Totals'!K22","v":0},{"$f":"'Weekly Totals'!L22","v":0},{"$f":"'Weekly Totals'!M22","v":0},{"$f":"'Weekly Totals'!N22","v":0},{"$f":"'Weekly Totals'!O22","v":0},null,null,"Hour ",{"$f":"'Weekly Totals'!D28","v":0},{"$f":"'Weekly Totals'!E28","v":0},{"$f":"'Weekly Totals'!F28","v":0},{"$f":"'Weekly Totals'!G28","v":0},{"$f":"'Weekly Totals'!H28","v":0},{"$f":"'Weekly Totals'!I28","v":0},{"$f":"'Weekly Totals'!J28","v":0},{"$f":"'Weekly Totals'!K28","v":0},{"$f":"'Weekly Totals'!L28","v":0},{"$f":"'Weekly Totals'!M28","v":0},{"$f":"'Weekly Totals'!N28","v":0},{"$f":"'Weekly Totals'!O28","v":0},null,null,null,null,"Hour ",{"$f":"'Weekly Totals'!D34","v":0},{"$f":"'Weekly Totals'!E34","v":0},{"$f":"'Weekly Totals'!F34","v":0},{"$f":"'Weekly Totals'!G34","v":0},{"$f":"'Weekly Totals'!H34","v":0},{"$f":"'Weekly Totals'!I34","v":0},{"$f":"'Weekly Totals'!J34","v":0},{"$f":"'Weekly Totals'!K34","v":0},{"$f":"'Weekly Totals'!L34","v":0},{"$f":"'Weekly Totals'!M34","v":0},{"$f":"'Weekly Totals'!N34","v":0},{"$f":"'Weekly Totals'!O34","v":0},null,null,null,null,"Hour ",{"$f":"'Weekly Totals'!D40","v":0},{"$f":"'Weekly Totals'!E40","v":0},{"$f":"'Weekly Totals'!F40","v":0},{"$f":"'Weekly Totals'!G40","v":0},{"$f":"'Weekly Totals'!H40","v":0},{"$f":"'Weekly Totals'!I40","v":0},{"$f":"'Weekly Totals'!J40","v":0},{"$f":"'Weekly Totals'!K40","v":0},{"$f":"'Weekly Totals'!L40","v":0},{"$f":"'Weekly Totals'!M40","v":0},{"$f":"'Weekly Totals'!N40","v":0},{"$f":"'Weekly Totals'!O40","v":0}]
[null,null,"Pass/Hour",{"$f":"D62/D63","v":{"$error":"#DIV/0!"}},{"$f":"E62/E63","v":{"$error":"#DIV/0!"}},{"$error":"#DIV/0!"},{"$error":"#DIV/0!"},{"$error":"#DIV/0!"},{"$error":"#DIV/0!"},{"$error":"#DIV/0!"},{"$error":"#DIV/0!"},{"$error":"#DIV/0!"},{"$error":"#DIV/0!"},{"$error":"#DIV/0!"},{"$error":"#DIV/0!"},null,null,null,null,null,"Pass/Hour",{"$f":"V62/V$63","v":{"$error":"#DIV/0!"}},{"$error":"#DIV/0!"},{"$error":"#DIV/0!"},{"$error":"#DIV/0!"},{"$error":"#DIV/0!"},{"$error":"#DIV/0!"},{"$error":"#DIV/0!"},{"$error":"#DIV/0!"},{"$error":"#DIV/0!"},{"$error":"#DIV/0!"},{"$error":"#DIV/0!"},{"$error":"#DIV/0!"},null,null,null,null,"Pass/Hour",{"$f":"AM62/AM63","v":{"$error":"#DIV/0!"}},{"$error":"#DIV/0!"},{"$error":"#DIV/0!"},{"$error":"#DIV/0!"},{"$error":"#DIV/0!"},{"$error":"#DIV/0!"},{"$error":"#DIV/0!"},{"$error":"#DIV/0!"},{"$error":"#DIV/0!"},{"$error":"#DIV/0!"},{"$error":"#DIV/0!"},{"$error":"#DIV/0!"},null,null,"Pass/Hour",{"$f":"BB62/BB63","v":{"$error":"#DIV/0!"}},{"$f":"BC62/BC63","v":{"$error":"#DIV/0!"}},{"$error":"#DIV/0!"},{"$error":"#DIV/0!"},{"$error":"#DIV/0!"},{"$error":"#DIV/0!"},{"$error":"#DIV/0!"},{"$f":"BI62/BI63","v":{"$error":"#DIV/0!"}},{"$error":"#DIV/0!"},{"$error":"#DIV/0!"},{"$error":"#DIV/0!"},{"$error":"#DIV/0!"},null,null,null,null,"Pass/Hour",{"$f":"BS62/BS63","v":{"$error":"#DIV/0!"}},{"$f":"BT62/BT63","v":{"$error":"#DIV/0!"}},{"$error":"#DIV/0!"},{"$error":"#DIV/0!"},{"$error":"#DIV/0!"},{"$error":"#DIV/0!"},{"$error":"#DIV/0!"},{"$f":"BZ62/BZ63","v":{"$error":"#DIV/0!"}},{"$f":"CA62/CA63","v":{"$error":"#DIV/0!"}},{"$f":"CB62/CB63","v":{"$error":"#DIV/0!"}},{"$f":"CC62/CC63","v":{"$error":"#DIV/0!"}},{"$f":"CD62/CD63","v":{"$error":"#DIV/0!"}},null,null,null,null,"Pass/Hour",{"$f":"CJ62/CJ63","v":{"$error":"#DIV/0!"}},{"$f":"CK62/CK63","v":{"$error":"#DIV/0!"}},{"$error":"#DIV/0!"},{"$error":"#DIV/0!"},{"$error":"#DIV/0!"},{"$error":"#DIV/0!"},{"$error":"#DIV/0!"},{"$f":"CQ62/CQ63","v":{"$error":"#DIV/0!"}},{"$f":"CR62/CR63","v":{"$error":"#DIV/0!"}},{"$f":"CS62/CS63","v":{"$error":"#DIV/0!"}},{"$f":"CT62/CT63","v":{"$error":"#DIV/0!"}},{"$f":"CU62/CU63","v":{"$error":"#DIV/0!"}}]
[]
[]
[]
[]
[]
[]
[]
[]
[]
[]
[]
[]
[]
[]
[]
[]
[]
[]
[]
["Miles Per Hour",null,"Miles per Hour (Saturday)",null,null,null,null,null,null,null,null,null,null,null,null,null,null,null,null,null,"Miles Per Hour (Sunday)",null,null,null,null,null,null,null,null,null,null,null,null,null,null,null,null,"Miles Per Hour (Weekday)",null,null,null,null,null,null,null,null,null,null,null,null,null,null,"Miles Per Hour (Weekday)",null,null,null,null,null,null,null,null,null,null,null,null,null,null,null,null,"Miles Per Hour (Weekday)",null,null,null,null,null,null,null,null,null,null,null,null,null,null,null,null,"Miles Per Hour (Weekday)"]
[null,null,null,"July","August","September","October","November","December","January","February","March","April","May","June",null,null,null,null,null,null,"July","August","September","October","November","December","January","February","March","April","May","June",null,null,null,null,null,"July","August","September","October","November","December","January","February","March","April","May","June",null,null,null,"July","August","September","October","November","December","January","February","March","April","May","June",null,null,null,null,null,"July","August","September","October","November","December","January","February","March","April","May","June",null,null,null,null,null,"July","August","September","October","November","December","January","February","March","April","May","June"]
[null,null,"Weekday",{"$f":"Weekday!D9/Weekday!D10","v":{"$error":"#DIV/0!"}},{"$f":"Weekday!E9/Weekday!E10","v":{"$error":"#DIV/0!"}},{"$f":"Weekday!F9/Weekday!F10","v":{"$error":"#DIV/0!"}},{"$f":"Weekday!G9/Weekday!G10","v":{"$error":"#DIV/0!"}},{"$f":"Weekday!H9/Weekday!H10","v":{"$error":"#DIV/0!"}},{"$f":"Weekday!I9/Weekday!I10","v":{"$error":"#DIV/0!"}},{"$f":"Weekday!J9/Weekday!J10","v":{"$error":"#DIV/0!"}},{"$f":"Weekday!K9/Weekday!K10","v":{"$error":"#DIV/0!"}},{"$f":"Weekday!L9/Weekday!L10","v":{"$error":"#DIV/0!"}},{"$f":"Weekday!M9/Weekday!M10","v":{"$error":"#DIV/0!"}},{"$f":"Weekday!N9/Weekday!N10","v":{"$error":"#DIV/0!"}},{"$f":"Weekday!O9/Weekday!O10","v":{"$error":"#DIV/0!"}},null,null,null,null,null,"Weekday",{"$f":"Weekday!D15/Weekday!D16","v":{"$error":"#DIV/0!"}},{"$f":"Weekday!E15/Weekday!E16","v":{"$error":"#DIV/0!"}},{"$f":"Weekday!F15/Weekday!F16","v":{"$error":"#DIV/0!"}},{"$f":"Weekday!G15/Weekday!G16","v":{"$error":"#DIV/0!"}},{"$f":"Weekday!H15/Weekday!H16","v":{"$error":"#DIV/0!"}},{"$f":"Weekday!I15/Weekday!I16","v":{"$error":"#DIV/0!"}},{"$f":"Weekday!J15/Weekday!J16","v":{"$error":"#DIV/0!"}},{"$f":"Weekday!K15/Weekday!K16","v":{"$error":"#DIV/0!"}},{"$f":"Weekday!L15/Weekday!L16","v":{"$error":"#DIV/0!"}},{"$f":"Weekday!M15/Weekday!M16","v":{"$error":"#DIV/0!"}},{"$f":"Weekday!N15/Weekday!N16","v":{"$error":"#DIV/0!"}},{"$f":"Weekday!O15/Weekday!O16","v":{"$error":"#DIV/0!"}},null,null,null,null,"Weekday",{"$f":"Weekday!D21/Weekday!D22","v":{"$error":"#DIV/0!"}},{"$f":"Weekday!E21/Weekday!E22","v":{"$error":"#DIV/0!"}},{"$f":"Weekday!F21/Weekday!F22","v":{"$error":"#DIV/0!"}},{"$f":"Weekday!G21/Weekday!G22","v":{"$error":"#DIV/0!"}},{"$f":"Weekday!H21/Weekday!H22","v":{"$error":"#DIV/0!"}},{"$f":"Weekday!I21/Weekday!I22","v":{"$error":"#DIV/0!"}},{"$f":"Weekday!J21/Weekday!J22","v":{"$error":"#DIV/0!"}},{"$f":"Weekday!K21/Weekday!K22","v":{"$error":"#DIV/0!"}},{"$f":"Weekday!L21/Weekday!L22","v":{"$error":"#DIV/0!"}},{"$f":"Weekday!M21/Weekday!M22","v":{"$error":"#DIV/0!"}},{"$f":"Weekday!N21/Weekday!N22","v":{"$error":"#DIV/0!"}},{"$f":"Weekday!O21/Weekday!O22","v":{"$error":"#DIV/0!"}},null,null,"Weekday",{"$f":"Weekday!D27/Weekday!D28","v":{"$error":"#DIV/0!"}},{"$f":"Weekday!E27/Weekday!E28","v":{"$error":"#DIV/0!"}},{"$f":"Weekday!F27/Weekday!F28","v":{"$error":"#DIV/0!"}},{"$f":"Weekday!G27/Weekday!G28","v":{"$error":"#DIV/0!"}},{"$f":"Weekday!H27/Weekday!H28","v":{"$error":"#DIV/0!"}},{"$f":"Weekday!I27/Weekday!I28","v":{"$error":"#DIV/0!"}},{"$f":"Weekday!J27/Weekday!J28","v":{"$error":"#DIV/0!"}},{"$f":"Weekday!K27/Weekday!K28","v":{"$error":"#DIV/0!"}},{"$f":"Weekday!L27/Weekday!L28","v":{"$error":"#DIV/0!"}},{"$f":"Weekday!M27/Weekday!M28","v":{"$error":"#DIV/0!"}},{"$f":"Weekday!N27/Weekday!N28","v":{"$error":"#DIV/0!"}},{"$f":"Weekday!O27/Weekday!O28","v":{"$error":"#DIV/0!"}},null,null,null,null,"Weekday",{"$f":"Weekday!D33/Weekday!D34","v":{"$error":"#DIV/0!"}},{"$f":"Weekday!E33/Weekday!E34","v":{"$error":"#DIV/0!"}},{"$f":"Weekday!F33/Weekday!F34","v":{"$error":"#DIV/0!"}},{"$f":"Weekday!G33/Weekday!G34","v":{"$error":"#DIV/0!"}},{"$f":"Weekday!H33/Weekday!H34","v":{"$error":"#DIV/0!"}},{"$f":"Weekday!I33/Weekday!I34","v":{"$error":"#DIV/0!"}},{"$f":"Weekday!J33/Weekday!J34","v":{"$error":"#DIV/0!"}},{"$f":"Weekday!K33/Weekday!K34","v":{"$error":"#DIV/0!"}},{"$f":"Weekday!L33/Weekday!L34","v":{"$error":"#DIV/0!"}},{"$f":"Weekday!M33/Weekday!M34","v":{"$error":"#DIV/0!"}},{"$f":"Weekday!N33/Weekday!N34","v":{"$error":"#DIV/0!"}},{"$f":"Weekday!O33/Weekday!O34","v":{"$error":"#DIV/0!"}},null,null,null,null,"Weekday",{"$f":"Weekday!D39/Weekday!D40","v":{"$error":"#DIV/0!"}},{"$f":"Weekday!E39/Weekday!E40","v":{"$error":"#DIV/0!"}},{"$f":"Weekday!F39/Weekday!F40","v":{"$error":"#DIV/0!"}},{"$f":"Weekday!G39/Weekday!G40","v":{"$error":"#DIV/0!"}},{"$f":"Weekday!H39/Weekday!H40","v":{"$error":"#DIV/0!"}},{"$f":"Weekday!I39/Weekday!I40","v":{"$error":"#DIV/0!"}},{"$f":"Weekday!J39/Weekday!J40","v":{"$error":"#DIV/0!"}},{"$f":"Weekday!K39/Weekday!K40","v":{"$error":"#DIV/0!"}},{"$f":"Weekday!L39/Weekday!L40","v":{"$error":"#DIV/0!"}},{"$f":"Weekday!M39/Weekday!M40","v":{"$error":"#DIV/0!"}},{"$f":"Weekday!N39/Weekday!N40","v":{"$error":"#DIV/0!"}},{"$f":"Weekday!O39/Weekday!O40","v":{"$error":"#DIV/0!"}}]
[null,null,"Saturday",{"$f":"Saturday!D9/Saturday!D10","v":{"$error":"#DIV/0!"}},{"$f":"Saturday!E9/Saturday!E10","v":{"$error":"#DIV/0!"}},{"$f":"Saturday!F9/Saturday!F10","v":{"$error":"#DIV/0!"}},{"$f":"Saturday!G9/Saturday!G10","v":{"$error":"#DIV/0!"}},{"$f":"Saturday!H9/Saturday!H10","v":{"$error":"#DIV/0!"}},{"$f":"Saturday!I9/Saturday!I10","v":{"$error":"#DIV/0!"}},{"$f":"Saturday!J9/Saturday!J10","v":{"$error":"#DIV/0!"}},{"$f":"Saturday!K9/Saturday!K10","v":{"$error":"#DIV/0!"}},{"$f":"Saturday!L9/Saturday!L10","v":{"$error":"#DIV/0!"}},{"$f":"Saturday!M9/Saturday!M10","v":{"$error":"#DIV/0!"}},{"$f":"Saturday!N9/Saturday!N10","v":{"$error":"#DIV/0!"}},{"$f":"Saturday!O9/Saturday!O10","v":{"$error":"#DIV/0!"}},null,null,null,null,null,"Saturday",{"$f":"Saturday!D15/Saturday!D16","v":{"$error":"#DIV/0!"}},{"$f":"Saturday!E15/Saturday!E16","v":{"$error":"#DIV/0!"}},{"$f":"Saturday!F15/Saturday!F16","v":{"$error":"#DIV/0!"}},{"$f":"Saturday!G15/Saturday!G16","v":{"$error":"#DIV/0!"}},{"$f":"Saturday!H15/Saturday!H16","v":{"$error":"#DIV/0!"}},{"$f":"Saturday!I15/Saturday!I16","v":{"$error":"#DIV/0!"}},{"$f":"Saturday!J15/Saturday!J16","v":{"$error":"#DIV/0!"}},{"$f":"Saturday!K15/Saturday!K16","v":{"$error":"#DIV/0!"}},{"$f":"Saturday!L15/Saturday!L16","v":{"$error":"#DIV/0!"}},{"$f":"Saturday!M15/Saturday!M16","v":{"$error":"#DIV/0!"}},{"$f":"Saturday!N15/Saturday!N16","v":{"$error":"#DIV/0!"}},{"$f":"Saturday!O15/Saturday!O16","v":{"$error":"#DIV/0!"}},null,null,null,null,"Saturday",{"$f":"Saturday!D21/Saturday!D22","v":{"$error":"#DIV/0!"}},{"$f":"Saturday!E21/Saturday!E22","v":{"$error":"#DIV/0!"}},{"$f":"Saturday!F21/Saturday!F22","v":{"$error":"#DIV/0!"}},{"$f":"Saturday!G21/Saturday!G22","v":{"$error":"#DIV/0!"}},{"$f":"Saturday!H21/Saturday!H22","v":{"$error":"#DIV/0!"}},{"$f":"Saturday!I21/Saturday!I22","v":{"$error":"#DIV/0!"}},{"$f":"Saturday!J21/Saturday!J22","v":{"$error":"#DIV/0!"}},{"$f":"Saturday!K21/Saturday!K22","v":{"$error":"#DIV/0!"}},{"$f":"Saturday!L21/Saturday!L22","v":{"$error":"#DIV/0!"}},{"$f":"Saturday!M21/Saturday!M22","v":{"$error":"#DIV/0!"}},{"$f":"Saturday!N21/Saturday!N22","v":{"$error":"#DIV/0!"}},{"$f":"Saturday!O21/Saturday!O22","v":{"$error":"#DIV/0!"}},null,null,"Saturday",{"$f":"Saturday!D27/Saturday!D28","v":{"$error":"#DIV/0!"}},{"$f":"Saturday!E27/Saturday!E28","v":{"$error":"#DIV/0!"}},{"$f":"Saturday!F27/Saturday!F28","v":{"$error":"#DIV/0!"}},{"$f":"Saturday!G27/Saturday!G28","v":{"$error":"#DIV/0!"}},{"$f":"Saturday!H27/Saturday!H28","v":{"$error":"#DIV/0!"}},{"$f":"Saturday!I27/Saturday!I28","v":{"$error":"#DIV/0!"}},{"$f":"Saturday!J27/Saturday!J28","v":{"$error":"#DIV/0!"}},{"$f":"Saturday!K27/Saturday!K28","v":{"$error":"#DIV/0!"}},{"$f":"Saturday!L27/Saturday!L28","v":{"$error":"#DIV/0!"}},{"$f":"Saturday!M27/Saturday!M28","v":{"$error":"#DIV/0!"}},{"$f":"Saturday!N27/Saturday!N28","v":{"$error":"#DIV/0!"}},{"$f":"Saturday!O27/Saturday!O28","v":{"$error":"#DIV/0!"}},null,null,null,null,"Saturday",{"$f":"Saturday!D33/Saturday!D34","v":{"$error":"#DIV/0!"}},{"$f":"Saturday!E33/Saturday!E34","v":{"$error":"#DIV/0!"}},{"$f":"Saturday!F33/Saturday!F34","v":{"$error":"#DIV/0!"}},{"$f":"Saturday!G33/Saturday!G34","v":{"$error":"#DIV/0!"}},{"$f":"Saturday!H33/Saturday!H34","v":{"$error":"#DIV/0!"}},{"$f":"Saturday!I33/Saturday!I34","v":{"$error":"#DIV/0!"}},{"$f":"Saturday!J33/Saturday!J34","v":{"$error":"#DIV/0!"}},{"$f":"Saturday!K33/Saturday!K34","v":{"$error":"#DIV/0!"}},{"$f":"Saturday!L33/Saturday!L34","v":{"$error":"#DIV/0!"}},{"$f":"Saturday!M33/Saturday!M34","v":{"$error":"#DIV/0!"}},{"$f":"Saturday!N33/Saturday!N34","v":{"$error":"#DIV/0!"}},{"$f":"Saturday!O33/Saturday!O34","v":{"$error":"#DIV/0!"}},null,null,null,null,"Saturday",{"$f":"Saturday!D39/Saturday!D40","v":{"$error":"#DIV/0!"}},{"$f":"Saturday!E39/Saturday!E40","v":{"$error":"#DIV/0!"}},{"$f":"Saturday!F39/Saturday!F40","v":{"$error":"#DIV/0!"}},{"$f":"Saturday!G39/Saturday!G40","v":{"$error":"#DIV/0!"}},{"$f":"Saturday!H39/Saturday!H40","v":{"$error":"#DIV/0!"}},{"$f":"Saturday!I39/Saturday!I40","v":{"$error":"#DIV/0!"}},{"$f":"Saturday!J39/Saturday!J40","v":{"$error":"#DIV/0!"}},{"$f":"Saturday!K39/Saturday!K40","v":{"$error":"#DIV/0!"}},{"$f":"Saturday!L39/Saturday!L40","v":{"$error":"#DIV/0!"}},{"$f":"Saturday!M39/Saturday!M40","v":{"$error":"#DIV/0!"}},{"$f":"Saturday!N39/Saturday!N40","v":{"$error":"#DIV/0!"}},{"$f":"Saturday!O39/Saturday!O40","v":{"$error":"#DIV/0!"}}]
[null,null,"Sunday",{"$f":"Sunday!D9/Sunday!D10","v":{"$error":"#DIV/0!"}},{"$f":"Sunday!E9/Sunday!E10","v":{"$error":"#DIV/0!"}},{"$f":"Sunday!F9/Sunday!F10","v":{"$error":"#DIV/0!"}},{"$f":"Sunday!G9/Sunday!G10","v":{"$error":"#DIV/0!"}},{"$f":"Sunday!H9/Sunday!H10","v":{"$error":"#DIV/0!"}},{"$f":"Sunday!I9/Sunday!I10","v":{"$error":"#DIV/0!"}},{"$f":"Sunday!J9/Sunday!J10","v":{"$error":"#DIV/0!"}},{"$f":"Sunday!K9/Sunday!K10","v":{"$error":"#DIV/0!"}},{"$f":"Sunday!L9/Sunday!L10","v":{"$error":"#DIV/0!"}},{"$f":"Sunday!M9/Sunday!M10","v":{"$error":"#DIV/0!"}},{"$f":"Sunday!N9/Sunday!N10","v":{"$error":"#DIV/0!"}},{"$f":"Sunday!O9/Sunday!O10","v":{"$error":"#DIV/0!"}},null,null,null,null,null,"Sunday",{"$f":"Sunday!D15/Sunday!D16","v":{"$error":"#DIV/0!"}},{"$f":"Sunday!E15/Sunday!E16","v":{"$error":"#DIV/0!"}},{"$f":"Sunday!F15/Sunday!F16","v":{"$error":"#DIV/0!"}},{"$f":"Sunday!G15/Sunday!G16","v":{"$error":"#DIV/0!"}},{"$f":"Sunday!H15/Sunday!H16","v":{"$error":"#DIV/0!"}},{"$f":"Sunday!I15/Sunday!I16","v":{"$error":"#DIV/0!"}},{"$f":"Sunday!J15/Sunday!J16","v":{"$error":"#DIV/0!"}},{"$f":"Sunday!K15/Sunday!K16","v":{"$error":"#DIV/0!"}},{"$f":"Sunday!L15/Sunday!L16","v":{"$error":"#DIV/0!"}},{"$f":"Sunday!M15/Sunday!M16","v":{"$error":"#DIV/0!"}},{"$f":"Sunday!N15/Sunday!N16","v":{"$error":"#DIV/0!"}},{"$f":"Sunday!O15/Sunday!O16","v":{"$error":"#DIV/0!"}},null,null,null,null,"Sunday",{"$f":"Sunday!D21/Sunday!D22","v":{"$error":"#DIV/0!"}},{"$f":"Sunday!E21/Sunday!E22","v":{"$error":"#DIV/0!"}},{"$f":"Sunday!F21/Sunday!F22","v":{"$error":"#DIV/0!"}},{"$f":"Sunday!G21/Sunday!G22","v":{"$error":"#DIV/0!"}},{"$f":"Sunday!H21/Sunday!H22","v":{"$error":"#DIV/0!"}},{"$f":"Sunday!I21/Sunday!I22","v":{"$error":"#DIV/0!"}},{"$f":"Sunday!J21/Sunday!J22","v":{"$error":"#DIV/0!"}},{"$f":"Sunday!K21/Sunday!K22","v":{"$error":"#DIV/0!"}},{"$f":"Sunday!L21/Sunday!L22","v":{"$error":"#DIV/0!"}},{"$f":"Sunday!M21/Sunday!M22","v":{"$error":"#DIV/0!"}},{"$f":"Sunday!N21/Sunday!N22","v":{"$error":"#DIV/0!"}},{"$f":"Sunday!O21/Sunday!O22","v":{"$error":"#DIV/0!"}},null,null,"Sunday",{"$f":"Sunday!D27/Sunday!D28","v":{"$error":"#DIV/0!"}},{"$f":"Sunday!E27/Sunday!E28","v":{"$error":"#DIV/0!"}},{"$f":"Sunday!F27/Sunday!F28","v":{"$error":"#DIV/0!"}},{"$f":"Sunday!G27/Sunday!G28","v":{"$error":"#DIV/0!"}},{"$f":"Sunday!H27/Sunday!H28","v":{"$error":"#DIV/0!"}},{"$f":"Sunday!I27/Sunday!I28","v":{"$error":"#DIV/0!"}},{"$f":"Sunday!J27/Sunday!J28","v":{"$error":"#DIV/0!"}},{"$f":"Sunday!K27/Sunday!K28","v":{"$error":"#DIV/0!"}},{"$f":"Sunday!L27/Sunday!L28","v":{"$error":"#DIV/0!"}},{"$f":"Sunday!M27/Sunday!M28","v":{"$error":"#DIV/0!"}},{"$f":"Sunday!N27/Sunday!N28","v":{"$error":"#DIV/0!"}},{"$f":"Sunday!O27/Sunday!O28","v":{"$error":"#DIV/0!"}},null,null,null,null,"Sunday",{"$f":"Sunday!D33/Sunday!D34","v":{"$error":"#DIV/0!"}},{"$f":"Sunday!E33/Sunday!E34","v":{"$error":"#DIV/0!"}},{"$f":"Sunday!F33/Sunday!F34","v":{"$error":"#DIV/0!"}},{"$f":"Sunday!G33/Sunday!G34","v":{"$error":"#DIV/0!"}},{"$f":"Sunday!H33/Sunday!H34","v":{"$error":"#DIV/0!"}},{"$f":"Sunday!I33/Sunday!I34","v":{"$error":"#DIV/0!"}},{"$f":"Sunday!J33/Sunday!J34","v":{"$error":"#DIV/0!"}},{"$f":"Sunday!K33/Sunday!K34","v":{"$error":"#DIV/0!"}},{"$f":"Sunday!L33/Sunday!L34","v":{"$error":"#DIV/0!"}},{"$f":"Sunday!M33/Sunday!M34","v":{"$error":"#DIV/0!"}},{"$f":"Sunday!N33/Sunday!N34","v":{"$error":"#DIV/0!"}},{"$f":"Sunday!O33/Sunday!O34","v":{"$error":"#DIV/0!"}},null,null,null,null,"Sunday",{"$f":"Sunday!D39/Sunday!D40","v":{"$error":"#DIV/0!"}},{"$f":"Sunday!E39/Sunday!E40","v":{"$error":"#DIV/0!"}},{"$f":"Sunday!F39/Sunday!F40","v":{"$error":"#DIV/0!"}},{"$f":"Sunday!G39/Sunday!G40","v":{"$error":"#DIV/0!"}},{"$f":"Sunday!H39/Sunday!H40","v":{"$error":"#DIV/0!"}},{"$f":"Sunday!I39/Sunday!I40","v":{"$error":"#DIV/0!"}},{"$f":"Sunday!J39/Sunday!J40","v":{"$error":"#DIV/0!"}},{"$f":"Sunday!K39/Sunday!K40","v":{"$error":"#DIV/0!"}},{"$f":"Sunday!L39/Sunday!L40","v":{"$error":"#DIV/0!"}},{"$f":"Sunday!M39/Sunday!M40","v":{"$error":"#DIV/0!"}},{"$f":"Sunday!N39/Sunday!N40","v":{"$error":"#DIV/0!"}},{"$f":"Sunday!O39/Sunday!O40","v":{"$error":"#DIV/0!"}}]

{"sheet":"Finance","index":7,"n_rows":22,"n_cols":14,"rows_kept":22,"cut":false,"hidden":true,"merged":[]}
[null,{"$f":"\"6. FINANCIAL: \"&Overview!D4","v":"6. FINANCIAL: "},null,null,null,null,null,null,null,null,null,{"$f":"Overview!B2","v":"FY2024"}]
[null,null,null,null,null,"FIXED ROUTE","DIAL-A-RIDE","LIGHT RAIL","STREET CAR","VANPOOL","MICROTRANSIT","TOTAL",null,"These numbers should be accurate as of the submission of the report"]
[null,"I. ","OPERATING EXPENSES"]
[]
[{"$f":"'Weekly Totals'!A40+1","v":140},null,"A. Total System Expenses",null,null,null,null,null,null,null,null,{"$f":"SUM(F5:K5)","v":0},{"$f":"'Weekly Totals'!U40+1","v":140}]
[]
[null,"II.","OPERATING REVENUES"]
[]
[{"$f":"A5+1","v":141},null,"A. Passenger Fares (Farebox)",null,null,null,null,null,null,null,null,{"$f":"SUM(F9:K9)","v":0},{"$f":"M5+1","v":141}]
[{"$f":"A9+1","v":142},null,"B. Special Transit Fares ",null,null,null,null,null,null,null,null,{"$f":"SUM(F10:K10)","v":0},{"$f":"M9+1","v":142}]
[{"$f":"A10+1","v":143},null,"C. Other Transportation Revenues ",null,null,null,null,null,null,null,null,0,{"$f":"M10+1","v":143}]
[{"$f":"A11+1","v":144},null,"D. Non-Transportation Revenues",null,null,null,null,null,null,null,null,0,{"$f":"M11+1","v":144}]
[{"$f":"A12+1","v":145},null,"E. Total Revenue",null,null,{"$f":"SUM(F9:F12)","v":0},0,0,0,0,{"$f":"SUM(K9:K12)","v":0},0,{"$f":"M12+1","v":145}]
[]
[null,"III.","OPERATING ASSISTANCE"]
[]
[{"$f":"A13+1","v":146},null,"A. Federal Assistance",null,null,null,null,null,null,null,null,{"$f":"SUM(F17:K17)","v":0},{"$f":"M13+1","v":146}]
[{"$f":"A17+1","v":147},null,"B. State Assistance",null,null,null,null,null,null,null,null,{"$f":"SUM(F18:K18)","v":0},{"$f":"M17+1","v":147}]
[{"$f":"A18+1","v":148},null,"C. Local Government Assistance",null,null,null,null,null,null,null,null,0,{"$f":"M18+1","v":148}]
[{"$f":"A19+1","v":149},null,"D. Other Assistance",null,null,null,null,null,null,null,null,0,{"$f":"M19+1","v":149}]
[{"$f":"A20+1","v":150},null,"E. Total Operating Assistance",null,null,{"$f":"SUM(F17:F20)","v":0},{"$f":"SUM(G17:G20)","v":0},0,0,0,{"$f":"SUM(K17:K20)","v":0},0,{"$f":"M20+1","v":150}]
[null,null,null,null,null,"A","B","C","D","E","F","G"]

{"sheet":"Reconciliation","index":8,"n_rows":34,"n_cols":19,"rows_kept":34,"cut":false,"hidden":true,"merged":[[25,2,25,17],[18,2,18,17],[33,1,36,2]]}
[null,{"$f":"\"7. RECONCILIATION \"&Overview!D4","v":"7. RECONCILIATION "},null,null,null,null,null,null,null,null,null,null,null,null,null,null,null,{"$f":"Overview!B2","v":"FY2024"}]
[]
[null,null,null,null,null,"Fixed-Route Services",null,"Dial-A-Ride Services",null,"Light Rail Services",null,"Street Car Services",null,"Vanpool Services",null,"Microtransit Services",null,"Total"]
[null,"I. ","TOTAL OPERATING EXPENSES",null,null,{"$f":"Finance!F5","v":0},null,{"$f":"Finance!G5","v":0},null,{"$f":"Finance!H5","v":0},null,{"$f":"Finance!I5","v":0},null,{"$f":"Finance!J5","v":0},null,{"$f":"Finance!K5","v":0},null,{"$f":"SUM(F4:P4)","v":0}]
[]
[null,"II.","TOTAL OPERATING REVENUES",null,null,{"$f":"Finance!F13","v":0},null,{"$f":"Finance!G13","v":0},null,{"$f":"Finance!H13","v":0},null,{"$f":"Finance!I13","v":0},null,{"$f":"Finance!J13","v":0},null,{"$f":"Finance!K13","v":0},null,{"$f":"SUM(F6:P6)","v":0}]
[]
[null,"III.","TOTAL OPERATING ASSISTANCE",null,null,{"$f":"Finance!F21","v":0},null,{"$f":"Finance!G21","v":0},null,{"$f":"Finance!H21","v":0},null,{"$f":"Finance!I21","v":0},null,{"$f":"Finance!J21","v":0},null,{"$f":"Finance!J21","v":0},null,{"$f":"SUM(F8:P8)","v":0}]
[]
[null,"IV.","REMAINDER"]
[null,"If [Total Expenses - (Total Revenues + Total Assistance)] results in a Surplus, complete section below "]
[null,"to identify how the Surplus will be used.  If result is a Deficit, complete section below to identify"]
[null,"source of funds used to cover the Deficit. "]
[]
[null,"A.","Surplus . . . . . . . . . . . . . . . . . . . . . . . . . . . . . . . . . . . . .",null,null,null,null,{"$f":"IF((R6+R8)-R4>0,(R6+R8)-R4,0)","v":0}]
[{"$f":"Finance!A21+1","v":151},null,"(1) Put in transit account . . . . . . . ",null,null,null,null,null,null,null,null,null,null,null,null,null,null,null,{"$f":"Finance!M21+1","v":151}]
[{"$f":"A16+1","v":152},null,"(2) Used for other purpose . . . . . .",null,null,null,null,null,null,null,null,null,null,null,null,null,null,null,{"$f":"S16+1","v":152}]
[null,null,"(explain below)"]
[{"$f":"A17+1","v":153},null,null,null,null,null,null,null,null,null,null,null,null,null,null,null,null,null,{"$f":"S17+1","v":153}]
[]
[null,"B.","Deficit . . . . . . . . . . . . . . . . . . . . . . . . . . . . . . . . . . . . . .",null,null,null,null,{"$f":"IF((R6+R8)-R4<0,(R6+R8)-R4,0)","v":0}]
[{"$f":"A19+1","v":154},null,"(1) Draw down transit account . . .",null,null,null,null,null,null,null,null,null,null,null,null,null,null,null,{"$f":"S19+1","v":154}]
[{"$f":"A22+1","v":155},null,"(2) Local government funds . . . . .",null,null,null,null,null,null,null,null,null,null,null,null,null,null,null,{"$f":"S22+1","v":155}]
[{"$f":"A23+1","v":156},null,"(3) Other . . . . . . . . . . . . . . . . . . .",null,null,null,null,null,null,null,null,null,null,null,null,null,null,null,{"$f":"S23+1","v":156}]
[null,null,"(explain below)"]
[{"$f":"A24+1","v":157},null,null,null,null,null,null,null,null,null,null,null,null,null,null,null,null,null,{"$f":"S24+1","v":157}]
[]
[null,null,"I hereby certify that, to the best of my knowledge, the information in this report is accurate and complete."]
[]
[null,null,"Signature of Authorized Official",null,null,null,null,null,null,"Date"]
[]
[null,null,"Signature of Financial Manager",null,null,null,null,null,null,"Date"]
[]
[null,"Submission:",null,"Upload the Excel file and signed PDFs (4th quarter only) to NCDOT's Partner Connect"]

{"sheet":"Definitions","index":9,"n_rows":28,"n_cols":3,"rows_kept":28,"cut":false,"hidden":true,"merged":[]}
["AM/PM Peak Period Vehicles -",null,"The greatest number of revenue vehicles needed to provide revenue service in either the AM or PM peak period (which ever is greater)."]
["Deadhead -",null,"When a vehicle is out of revenue service and not available to the general public, such as going to or from the beginning or end of a route, it is deadhead. For demand-response services, deadhead includes travel between the dispatching point and the first passenger pick-up point and the travel from the last passenger drop-off back to the dispatch point. If a demand-response vehicle is going to pick up a new passenger directly after dropping off its last passenger, as opposed to going back to the dispatch point before going to pick up a passenger, it is still in revenue service."]
["Dial-A-Ride Services -",null,"Demand Response Service - Shared use transit service operating in response to calls from passengers or their agents to the transit operator, who schedules a vehicle to pick up the passengers to transport them to their destinations."]
["Federal Assistance - ",null,"General operating assistance received from the federal government (Section 5307 operating assistance for Governor's Apportionment systems and/or Section 5307 preventive maintenance and the cost of ADA paratransit services \"capital\" projects). Small urban area systems should include Section 5311 federal administration and operating assistance."]
["Fixed-Route Services -",null,"Services provided on a repetitive, fixed schedule basis along a specific route with vehicles stopping to pick up and deliver passengers to specific locations; each fixed route trip serves the same origins and destinations, such as rail and bus (MB); unlike demand responsive (DR) and vanpool (VP) services."]
["Light-Rail Services -",null,"A transit mode that typically is an electric railway with a light volume traffic capacity compared to heavy rail (HR). It is characterized by:\n• Passenger rail cars operating singly (or in short, usually two car, trains) on fixed rails in shared or exclusive right-of-way;\n• Low or high platform loading, and\n• Vehicle power drawn from an overhead electric line via a trolley or a pantograph."]
["Local Government Assistance -",null,"Funds provided by local government units to assist in the costs of operating transit services."]
["Midday Vehicles -",null,"Revenue vehicles required during the period between the end of the AM peak and the beginning of the PM peak."]
["Non-Transportation Revenues -",null,"The revenue earned from activities not associated with the provision of transit service. Non-transportation funds include investment earnings and ther non-transportation sources, including:\n• Revenues earned from sales of maintenance services on property not owned or used by the transit agency\n• Rentals of revenue vehicles to other operators\n• Rentals of transit agency buildings and property to other organizations\n• Parking fees generated from parking lots not normally used as park-and-ride locations\n• Donations\n• Grants from private foundations\n• Development fees\n• Rental car fees"]
["Operating Assistance -",null,"This category of incomes is intended to include those incomes derived from sources that are not paying directly for the use of transit services, but are helping to fund the net operating deficit."]
["Operating Expenses -",null,"The recurring costs of providing public transportation services, including all employees’ wages and salaries; fringe benefits; operating supplies such as fuel and oil; contractors’ charges for services; taxes; repair and maintenance services, parts, and supplies; equipment leases and rentals; marketing; lease or rental costs; and insurance. Operating expenses include administrative expenses. Operating expenses exclude planning and capital expenses. It also excludes depreciation on plant and equipment, costs of providing transportation services not available to the general public, and interest paid on loans on capital equipment."]
["Operating Revenues -",null,"This category of incomes is intended to include those incomes received from the provision of transportation services."]
["Other Assistance -",null,"Funds obtained from local institutions (such as state universities) to assist in the cost of operating transit services or revenue earned by transit systems that are organized as independent political subdivisions with their own taxation authority or revenue earned by systems through a dedicated tax collected by another organization on its behalf--such as motor vehicle registration fees. Also, any other assistance that does not fit in items III. A. - III. C., such as a tax refund, should be included as Other Assistance."]
["Other Transportation Revenues -",null,"Revenues earned from operations closely associated with transportation operations, including revenues earned from station concessions, vehicle concessions, advertising, and charter and school bus services."]
["Passenger Cars in Operation -",null,"The maximum number of passenger rail cars actually operated to provide service on an average weekday, average Saturday and average Sunday."]
["Passenger Fares (Farebox) -",null,"The revenue earned from carrying passengers in scheduled fixed-route (FR) services and demand response (DR) services. This includes all the fares collected by a transit system, including base fare; zone or distance premiums; express service premiums; extra cost transfers; quantity purchase discounts applicable to the passenger’s ride; and special transit fares. It also includes fares that are collected and retained by a contractor."]
["Revenue Service -",null,"The time when a vehicle is available to the general public and there is an expectation of carrying passengers. These passengers either directly pay fares; are subsidized by public policy; or provide payment through some contractual arrangement. Vehicles operated in fare free service are considered in revenue service. Revenue service includes layover / recovery time. Deadhead, vehicle maintenance testing, school bus service, and charter service are excluded."]
["Service Consumed -",null,"The amount of service actually used by passengers and which is measured by unlinked passenger trips (and passenger miles)."]
["Service Supplied -",null,"The amount of service scheduled or actually operated. Service supplied is measured in vehicles, miles and / or hours that were operated."]
["Special Transit Fares -",null,"The revenues earned for rides given in regular transit revenue service, but paid for by some organization rather than by the rider, and for rides given along special routes for which revenue may be guaranteed by a beneficiary of the service. Special transit fares include:\n• Industrial firms, shopping centers, public and private universities, etc., to guarantee a minimum revenue on a line operated especially for the benefit of the payer\n• Contractual arrangements with state or local governments\n• Contractual arrangements from non-government entities for special transit fares and from providing special service rides for sporting events, sightseeing, etc., where fares are not guaranteed on a contractual basis.\n• Contract fares collected and retained by a contractor."]
["State Assistance -",null,"General operating assistance received from the state government (State Maintenance Assistance Program - SMAP funds) and state match to Section 5311 administration funds for small urban area systems."]
["System Vehicles -",null,"These are the revenue service vehicles used in the fixed-route or dial-a-ride sevices. It does not include any supervisory, shop or non-revenue or vanpool vehicles."]
["Total System Expenses - ",null,"The total operating (and administrative) expenses for operating the services being provided. It includes the cost of a contractor providing services on behalf of the transit system. It excludes master plan and other major planning studies and capital expenses. It also excludes depreciation on plant and equipment, costs of providing transportation services not available to the general public, and interest paid on loans on capital equipment. It does include routine operations planning."]
["Total Unlinked Passenger Trips -",null,"The number of passengers who board public transportation vehicles. A passenger is counted each time he/she boards a vehicle even though he/she may have transferred from another public transportation vehicle."]
["Train Revenue Hours -",null,"The hours that trains are scheduled to or actually travel while in revenue service. Train revenue hours include layover/recovery time. Deadhead, training operators prior to revenue service, vehicle maintenance tests, and charter services are excluded."]
["Train Revenue Miles -",null,"The miles that trains are scheduled to or actually travel while in revenue service. Deadhead, training operators prior to revenue service, vehicle maintenance tests, and charter services are excluded. "]
["Vehicle Revenue Hours -",null,"The hours that vehicles are scheduled to or actually travel while in revenue service. Vehicle revenue hours include layover/recovery time. Deadhead, operator training, vehicle maintenance testing, and school bus and charter services are excluded."]
["Vehicle Revenue Miles -",null,"The miles that vehicles are scheduled to or actually travel while in revenue service. Vehicle revenue miles include layover/recovery time. Deadhead, operator training, vehicle maintenance testing, and school bus and charter services are excluded."]

{"sheet":"Warning","index":10,"n_rows":11,"n_cols":10,"rows_kept":11,"cut":false,"hidden":false,"merged":[]}
[]
[]
[]
[]
[]
[]
[]
[]
[]
[]
[null,null,null,null,null,null,null,null,null,"You must enable editing in order to use FY24 OpStats Form"]